{"text_format":"1","workbook":"xlsx","n_sheets":9,"sheets":["Aspect Register - PRINT","Site Action Plan - PRINT","Nuisance","Discharges","Waste","Heritage","Land","Resources","Ecology"],"not_rendered":{"charts":0,"images":4,"macros":1,"external_links":0,"defined_names":7,"comments":0,"pivot_tables":0},"unopened":[],"bounds":{"document_bytes":16777216,"sheet_cells":100000,"rows_first":2000,"rows_last":500,"rows_between":2000,"halvings":0,"cell_chars":16384,"cell_head_chars":4096},"cells_cut":0,"cells_raw":0,"read":"whole","date_system":"1900"}

{"sheet":"Aspect Register - PRINT","index":0,"n_rows":48,"n_cols":24,"rows_kept":48,"cut":false,"hidden":false,"merged":[[2,7,2,10],[3,12,3,13],[3,15,3,17],[2,12,2,16],[17,5,17,17],[4,12,4,13],[3,5,3,10],[4,15,4,17],[4,5,4,10],[5,5,5,10],[22,2,22,3],[8,15,8,17],[8,9,8,11],[12,2,12,3],[17,2,17,3],[8,12,8,14],[8,5,8,8],[5,2,5,3],[12,5,12,17],[10,5,10,8],[9,5,9,8],[10,9,10,10],[9,3,10,4],[7,5,7,17],[7,2,7,4],[11,3,11,4]]}
[]
[]
[null,null," ",null,null,"Project:","Name",null,null,null,null,"Region"]
[null,null,null,null,null,"Prepared by Technical Manager:",null,null,null,null,null,"Date",null,null,"Name"]
[null,null,null,null,null,"Initial Review by GSHE Advisor:",null,null,null,null,null,"Date",null,null,"Name"]
[null,null,"Environmental Aspect & Impact Register",null,null,"Regular Review by Site Team (Dates):"]
[]
[null,null,"Activity",null,null,"Environmental Aspect"]
[null,null,null,null,null,"NUISANCE",null,null,null,"DISCHARGE/EMISSIONS",null,null,"LAND & RESOURCES",null,null,"OTHER"]
[null,null,null,"Information >",null,"STD",null,null,null,"STD","STD","STD","STD","STD","STD","STD","STD","STD"]
[null,null,null,null,null,"Notes",null,null,null,"Notes",null,"Notes","Notes","Notes","Notes","Notes"]
[null,null,"Ref","Activity Applicable?",null,"Noise,  Light or Vibration","Dust or Odour","Highway Traffic","Visual Impact","Ground & Surface Water","Air Pollution","Waste","Cultural Heritage","Land Contamination","Resource Use \ne.g. Materials, Energy or Water","Ecology & Biodiversity","Other","Restrictions or Permit Required?"]
[null,null,"General Operations"]
[null,null,1,"Procurement, Deliveries & Transportation","N",null,null,null,null,null,null,null,null,null,null,null,null,null,null,null,null,null,null,"Business Unit List"]
[null,null,2,"Use of Plant & Vehicles, inc. Maintenance","N",null,null,null,null,null,null,null,null,null,null,null,null,null,null,null,null,null,null,"01 North Scotland "]
[null,null,3,"Site Office, Welfare & Compound Operation","N",null,null,null,null,null,null,null,null,null,null,null,null,null,null,null,null,null,null,"02 East Scotland "]
[null,null,4,"Use / Storage of Fuel & Hazardous Materials","N",null,null,null,null,null,null,null,null,null,null,null,null,null,null,null,null,null,null,"03 West Scotland "]
[null,null,"Enabling Works",null,null,null,null,null,null,null,null,null,null,null,null,null,null,null,null,null,null,null,null,"04 North East "]
[null,null,5,"Demolition Works","N",null,null,null,null,null,null,null,null,null,null,null,null,null,null,null,null,null,null,"05 Durham "]
[null,null,6,"Crushing & Screening of Inert Waste","N",null,null,null,null,null,null,null,null,null,null,null,null,null,null,null,null,null,null,"06 Teesside "]
[null,null,7,"Roadworks (Public Highway)","N",null,null,null,null,null,null,null,null,null,null,null,null,null,null,null,null,null,null,"07 Lancashire "]
[null,null,8,"Vegetation Clearance & Stripping","N",null,null,null,null,null,null,null,null,null,null,null,null,null,null,null,null,null,null,"08 Yorkshire "]
[null,null,"Site Construction",null,null,null,null,null,null,null,null,null,null,null,null,null,null,null,null,null,null,null,null,"09 West Yorkshire "]
[null,null,9,"Earthworks & Excavations","N",null,null,null,null,null,null,null,null,null,null,null,null,null,null,null,null,null,null,"10 South Yorkshire Don"]
[null,null,10,"Piling","N",null,null,null,null,null,null,null,null,null,null,null,null,null,null,null,null,null,null,"11 North West "]
[null,null,11,"Steel Frame Erection ","N",null,null,null,null,null,null,null,null,null,null,null,null,null,null,null,null,null,null,"12 Nottingham "]
[null,null,12,"Import or Export of Soil & Aggregates","N",null,null,null,null,null,null,null,null,null,null,null,null,null,null,null,null,null,null,"13 West Midlands "]
[null,null,13,"Use of Cement, Concrete Pouring and Washout","N",null,null,null,null,null,null,null,null,null,null,null,null,null,null,null,null,null,null,"14 North Midlands "]
[null,null,14,"Drainage of Storm and Foul Water","N",null,null,null,null,null,null,null,null,null,null,null,null,null,null,null,null,null,null,"15 East Midlands "]
[null,null,15,"Dewatering / Overpumping","N",null,null,null,null,null,null,null,null,null,null,null,null,null,null,null,null,null,null,"16 Anglia "]
[null,null,16,"Working Near a Watercourse","N",null,null,null,null,null,null,null,null,null,null,null,null,null,null,null,null,null,null,"17 Central "]
[null,null,17,"Mechanical, Electrical & Internal Fit-out","N",null,null,null,null,null,null,null,null,null,null,null,null,null,null,null,null,null,null,"18 South Midlands "]
[null,null,18,"Road Sweep, Wheelwash & Jetwashing","N",null,null,null,null,null,null,null,null,null,null,null,null,null,null,null,null,null,null,"19 Midlands "]
[null,null,19,"Other - Please Insert","N",null,null,null,null,null,null,null,null,null,null,null,null,null,null,null,null,null,null,"20 Suffolk"]
[null,null,20,"Other - Please Insert","N",null,null,null,null,null,null,null,null,null,null,null,null,null,null,null,null,null,null,"21 Essex "]
[null,null,null,null,null,null,null,null,null,null,null,null,null,null,null,null,null,null,null,null,null,null,null,"22 West Wales"]
[null,null,null,null,null,null,null,null,null,null,null,null,null,null,null,null,null,null,null,null,null,null,null,"23 East Wales "]
[null,null,null,null,null,null,null,null,null,null,null,null,null,null,null,null,null,null,null,null,null,null,null,"24 Severn Valley "]
[null,null,null,null,null,null,null,null,null,null,null,null,null,null,null,null,null,null,null,null,null,null,null,"25 Wessex "]
[null,null,null,null,null,null,null,null,null,null,null,null,null,null,null,null,null,null,null,null,null,null,null,"26 North London "]
[null,null,null,null,null,null,null,null,null,null,null,null,null,null,null,null,null,null,null,null,null,null,null,"27 Thames Valley "]
[null,null,null,null,null,null,null,null,null,null,null,null,null,null,null,null,null,null,null,null,null,null,null,"28 South East "]
[null,null,null,null,null,null,null,null,null,null,null,null,null,null,null,null,null,null,null,null,null,null,null,"29 South Coast "]
[null,null,null,null,null,null,null,null,null,null,null,null,null,null,null,null,null,null,null,null,null,null,null,"30 South West "]
[null,null,null,null,null,null,null,null,null,null,null,null,null,null,null,null,null,null,null,null,null,null,null,"31 Cornwall "]
[null,null,null,null,null,null,null,null,null,null,null,null,null,null,null,null,null,null,null,null,null,null,null,"32 Persimmon PLC Head Office "]
[null,null,null,null,null,null,null,null,null,null,null,null,null,null,null,null,null,null,null,null,null,null,null,"33 Space4 "]
[null,null,null,null,null,null,null,null,null,null,null,null,null,null,null,null,null,null,null,null,null,null,null,"34 Brickworks & Tileworks "]

{"sheet":"Site Action Plan - PRINT","index":1,"n_rows":172,"n_cols":29,"rows_kept":172,"cut":false,"hidden":false,"merged":[[1,24,1,27],[0,18,0,28],[1,3,1,4],[1,20,1,21]]}
[null,null,null,null,null,null,null,null,null,null,null,null,null,null,null,null,null,null,"This is required for print-out only and is locked. No data is entered here!"]
[null,null,null,"Persimmon Impact \nAction Plan : ",null,null,{"$f":"'Aspect Register - PRINT'!H3","v":0},null,null,null,null,null,null,null,null,null,null,null,null,null,{"$f":"D2","v":"Persimmon Impact \nAction Plan : "},null,null,{"$f":"G2","v":0}]
[null,"Activity Ref","Impact Ref","Activity","Environmental Aspect","Operational Condition","Potential Environmental Impact","Significance","Rating","Site Controls to Reduce Risk","Opportunities","Monitoring and Responsibility",null,null,null,null,null,null,"Ref","Ref","Activity","Environmental Aspect","Operational Condition","Potential Environmental Impact","Significance","Rating","Site Controls to Reduce Risk","Opportunities","Monitoring and Responsibility"]
[null,{"$f":"'Aspect Register - PRINT'!$C$27","v":12},"l",{"$f":"'Aspect Register - PRINT'!$D$27","v":"Import or Export of Soil & Aggregates"},{"$f":"'Aspect Register - PRINT'!$L$12","v":"Waste"},"Normal","Increased landfill or energy required to recycle. \nLittering / fly-tipping.\nBreach of legislation due to use of unauthorised carriers and/or disposal sites.",{"$f":"'Aspect Register - PRINT'!L27","v":0},{"$f":"IF(H4=0,4,IF(H4=\"N/A\",4,IF(H4=\"Low\",3,IF(H4=\"Med\",2,IF(H4=\"Sig\",1)))))","v":4},"Ensure imported recycled aggregates have been crushed in accordance with Aggregates Quality Protocol.\nImported topsoil is certified to BS3882.\nObtain both Gradient and Chemical Testing certificates for crushed aggregate.\nIncorporation of approved methods into RAMS & briefed.\nFor recycled aggregates, obtain U1 Exemption (<5000T) or Cl:aire MMP (>5000T) if not crushed in accordance with Aggregates Quality Protocol.\nFor soil, obtain U1 Exemption (<1000T) or Cl:aire MMP (>1000T).\nAnalysis of waste materials may be required for health risks, Waste Classification (WM3). \nWaste Acceptance Criteria (WAC) may be required if destined for landfill.\nApply the waste hierarchy e.g. Eliminate - Reduce - Reuse - Recycle.\nEnsure correct segregation and storage of waste streams.\nUse of Persimmon approved waste contractors.\nObtain Duty Of Care documentation for all waste contractors.\nRetain waste transfer notes (WTN) for min. 2 years or min. 3 years for hazardous consignment note.\nPrevent wind blown waste i.e. skip covers, haulage lorries covered etc.\nCommunicate site requirements at site induction.\n",null,"Project team & supply chain / sub-contractors.",null,null,null,null,null,null,{"$f":"_xlfn._xlws.SORT(_xlfn._xlws.FILTER(B4:L172, I4:I172<=2), 8)","v":{"$error":"#NAME?"}}]
[null,{"$f":"'Aspect Register - PRINT'!$C$33","v":18},"j",{"$f":"'Aspect Register - PRINT'!$D$33","v":"Road Sweep, Wheelwash & Jetwashing"},{"$f":"'Aspect Register - PRINT'!$J$12","v":"Ground & Surface Water"},"Normal","Pollution of controlled waters.\n",{"$f":"'Aspect Register - PRINT'!J33","v":0},{"$f":"IF(H5=0,4,IF(H5=\"N/A\",4,IF(H5=\"Low\",3,IF(H5=\"Med\",2,IF(H5=\"Sig\",1)))))","v":4},"Conduct all washing and cleaning operations in a designated, contained  area isolated from site drainage system.\nSuitable maintenance of wheel wash to prevent leaks.\nContaminated washdown effluent prevented from entering controlled waters.\nDischarge clean water, treated via a settlement tank or filter to sewer / foul system with permission from the water company and obtain a Trade Effluent Consent.\nEnsure road sweeper is an authorised waste carrier.\nDo not allow road sweepings to be disposed of onsite.\nIdentify watercourses, ditches, drains within, or close to, the site boundary on the Site Drainage Plan. \nCommunicate risks to supply chain.\nCarry out spill training to site team.\n",null,"Project team & supply chain / sub-contractors. "]
[null,{"$f":"'Aspect Register - PRINT'!$C$33","v":18},"l",{"$f":"'Aspect Register - PRINT'!$D$33","v":"Road Sweep, Wheelwash & Jetwashing"},{"$f":"'Aspect Register - PRINT'!$L$12","v":"Waste"},"Normal","Increased landfill or energy required to recycle. \nLittering / fly-tipping.\nBreach of legislation due to use of unauthorised carriers and/or disposal sites.",{"$f":"'Aspect Register - PRINT'!L33","v":0},{"$f":"IF(H6=0,4,IF(H6=\"N/A\",4,IF(H6=\"Low\",3,IF(H6=\"Med\",2,IF(H6=\"Sig\",1)))))","v":4},"Ensure road sweeper waste is not tipped onsite.\nEquipment maintenance in accordance with the manufacturers instructions.\nProvide adequate washdown containment where necessary.\nApply the waste hierarchy e.g. Eliminate - Reduce - Reuse - Recycle.\nEnsure correct segregation and storage of waste streams.\nUse of Persimmon approved waste contractors.\nObtain Duty Of Care documentation for all waste contractors.\nRetain waste transfer notes (WTN) for min. 2 years or min. 3 years for hazardous consignment note.\nPrevent wind blown waste i.e. skip covers, haulage lorries covered etc.\nCommunicate site requirements at site induction.\n",null,"Project team & supply chain / sub-contractors."]
[null,{"$f":"'Aspect Register - PRINT'!$C$33","v":18},"g",{"$f":"'Aspect Register - PRINT'!$D$33","v":"Road Sweep, Wheelwash & Jetwashing"},{"$f":"'Aspect Register - PRINT'!$G$12","v":"Dust or Odour"},"Normal","Disturb or harm to neighbouring communities.\nDisturb or harm to local fauna.",{"$f":"'Aspect Register - PRINT'!G33","v":0},{"$f":"IF(H7=0,4,IF(H7=\"N/A\",4,IF(H7=\"Low\",3,IF(H7=\"Med\",2,IF(H7=\"Sig\",1)))))","v":4},"Vehicles adhering to the Traffic Management Plan and site speed limit.\nCommunicate with local residents. \nIdentify nearby sensitive properties or receptors.\nDust monitoring installed & data reviewed where applicable.\nEquipment maintained in accordance with the manufacturers instructions.\nAdhere to any relevant planning conditions.\nUse of dust suppression / dampen down activities.\nLocate activity away from sensitive areas where possible.\n",null,"Project team & supply chain / sub-contractors "]
[null,{"$f":"'Aspect Register - PRINT'!$C$27","v":12},"g",{"$f":"'Aspect Register - PRINT'!$D$27","v":"Import or Export of Soil & Aggregates"},{"$f":"'Aspect Register - PRINT'!$G$12","v":"Dust or Odour"},"Normal","Disturb or harm to neighbouring communities.\nDisturb or harm to local fauna.",{"$f":"'Aspect Register - PRINT'!G27","v":0},{"$f":"IF(H8=0,4,IF(H8=\"N/A\",4,IF(H8=\"Low\",3,IF(H8=\"Med\",2,IF(H8=\"Sig\",1)))))","v":4},"Use of covered wagons when transporting soils & aggregates.\nProcure materials conforming to WRAP Quality Protocol.\nObtain gradient and chemical testing certification for aggregates.\nObtain BS3882 compliant certification for imported topsoil.\nUse of dust suppression / dampen down activities.\nEquipment maintained in accordance with the manufacturers instructions.\nAdhere to any relevant planning conditions.\nCommunicate with local residents. \nIdentify nearby sensitive properties or receptors.\nLocate activity away from sensitive areas where possible.\nDust monitoring installed & data reviewed where applicable.\n",null,"Project team & supply chain / sub-contractors"]
[null,{"$f":"'Aspect Register - PRINT'!$C$27","v":12},"f",{"$f":"'Aspect Register - PRINT'!$D$27","v":"Import or Export of Soil & Aggregates"},{"$f":"'Aspect Register - PRINT'!$F$12","v":"Noise,  Light or Vibration"},null,"Disturbance to neighbouring communities.\nDisturbance of flora & fauna.",{"$f":"'Aspect Register - PRINT'!F27","v":0},{"$f":"IF(H9=0,4,IF(H9=\"N/A\",4,IF(H9=\"Low\",3,IF(H9=\"Med\",2,IF(H9=\"Sig\",1)))))","v":4},"Plant and vehicle maintenance in accordance with the manufacturers instructions.\nAdhere to site speed limits.\nSwitch off engines when plant not in use.\nMaintenance of access tracks / roads. \nCommunicate with local residents. \nAdhere to any relevant planning conditions.\nIdentify nearby sensitive properties or receptors.\nSite machinery / plant / stockpiles away from sensitive areas.\nNoise/Vibration monitoring installed & data reviewed where applicable.\nConsider the requirement for Section 61 Notice application and comply.\n",null,"Project team & supply chain / sub-contractors"]
[null,{"$f":"'Aspect Register - PRINT'!$C$33","v":18},"f",{"$f":"'Aspect Register - PRINT'!$D$33","v":"Road Sweep, Wheelwash & Jetwashing"},{"$f":"'Aspect Register - PRINT'!$F$12","v":"Noise,  Light or Vibration"},"Normal","Disturbance to neighbouring communities.\nDisturbance of flora & fauna.",{"$f":"'Aspect Register - PRINT'!F33","v":0},{"$f":"IF(H10=0,4,IF(H10=\"N/A\",4,IF(H10=\"Low\",3,IF(H10=\"Med\",2,IF(H10=\"Sig\",1)))))","v":4},"Communicate with local residents. \nIdentify nearby sensitive properties or receptors.\nSite machinery & equipment sited away from sensitive areas.\nNoise/Vibration monitoring installed & data reviewed where applicable.\nEquipment maintained in accordance with the manufacturers instructions.\nAdhere to any relevant planning conditions.\n","Consider use of hybrid equipment and electric vehicles.","Project team & supply chain / sub-contractors "]
[null,{"$f":"'Aspect Register - PRINT'!$C$14","v":1},"g",{"$f":"'Aspect Register - PRINT'!$D$14","v":"Procurement, Deliveries & Transportation"},{"$f":"'Aspect Register - PRINT'!$G$12","v":"Dust or Odour"},null,"Disturb or harm to neighbouring communities.\nDisturb or harm to local fauna.",{"$f":"'Aspect Register - PRINT'!G14","v":0},{"$f":"IF(H11=0,4,IF(H11=\"N/A\",4,IF(H11=\"Low\",3,IF(H11=\"Med\",2,IF(H11=\"Sig\",1)))))","v":4},"Install base course and sub-base of roads as early as possible.\nUse of dust suppression / dampen down activities.\nScraping & sweeping of roads as necessary.\nVehicles adhering to the Traffic Management Plan and site speed limit.\nTelehandler to remain on installed roads where possible.\nEquipment maintained in accordance with the manufacturers instructions.\nAdhere to any relevant planning conditions.\nCommunicate with local residents.\nDust monitoring installed & data reviewed where applicable. \nIdentify nearby sensitive properties or receptors.\nLocate activity away from sensitive areas where possible.\nConsider use of wheel wash.\n",null,"Project team & supply chain / sub-contractors"]
[null,{"$f":"'Aspect Register - PRINT'!$C$14","v":1},"h",{"$f":"'Aspect Register - PRINT'!$D$14","v":"Procurement, Deliveries & Transportation"},{"$f":"'Aspect Register - PRINT'!$H$12","v":"Highway Traffic"},"Normal","Congestion on local roads causing nuisance.\n",{"$f":"'Aspect Register - PRINT'!H14","v":0},{"$f":"IF(H12=0,4,IF(H12=\"N/A\",4,IF(H12=\"Low\",3,IF(H12=\"Med\",2,IF(H12=\"Sig\",1)))))","v":4},"Adhere to any planning restrictions.\nEnsuring local / planning restrictions such as delivery times are met.\nConsider routes that bypass sensitive areas such as schools or shopping areas.\nConsider traffic speed limits on approach to site.\nVehicles adhering to the Traffic Management Plan and site speed limit.\nInstall protection measures for property, street furniture, soft banks etc.\nDisplay sufficient directional signage for deliveries and traffic marshalling where required.\nCommunicate with local residents.\n",null,"Project team & supply chain / sub-contractors"]
[null,{"$f":"'Aspect Register - PRINT'!$C$14","v":1},"f",{"$f":"'Aspect Register - PRINT'!$D$14","v":"Procurement, Deliveries & Transportation"},{"$f":"'Aspect Register - PRINT'!$F$12","v":"Noise,  Light or Vibration"},"Normal","Disturbance to neighbouring communities.\nDisturbance of flora & fauna.",{"$f":"'Aspect Register - PRINT'!F14","v":0},{"$f":"IF(H13=0,4,IF(H13=\"N/A\",4,IF(H13=\"Low\",3,IF(H13=\"Med\",2,IF(H13=\"Sig\",1)))))","v":4},"Plan deliveries according to any planning conditions.\nCommunicate with local residents. \nIdentify nearby sensitive properties or receptors.\nSite machinery / plant away from sensitive areas.\nAdhere to any relevant planning conditions.\nNoise/Vibration monitoring installed & data reviewed where applicable.\nConsider the requirement for Section 61 Notice application and comply.\n","Consider use of hybrid equipment and electric vehicles.","Project team & supply chain / sub-contractors"]
[null,{"$f":"'Aspect Register - PRINT'!$C$19","v":5},"g",{"$f":"'Aspect Register - PRINT'!$D$19","v":"Demolition Works"},{"$f":"'Aspect Register - PRINT'!$G$12","v":"Dust or Odour"},"Normal","Disturb or harm to neighbouring communities.\nDisturb or harm to local fauna.",{"$f":"'Aspect Register - PRINT'!G19","v":0},{"$f":"IF(H14=0,4,IF(H14=\"N/A\",4,IF(H14=\"Low\",3,IF(H14=\"Med\",2,IF(H14=\"Sig\",1)))))","v":4},"Use of dust suppression / dampen down activities.\nScraping & sweeping of roads & access routes as necessary.\nVehicles adhering to the Traffic Management Plan and site speed limit.\nEquipment maintained in accordance with the manufacturers instructions.\nAdhere to any relevant planning conditions.\nCommunicate with local residents. \nIdentify nearby sensitive properties or receptors.\nLocate activity away from sensitive areas where possible.\nConsider use of wheel wash.\nDust monitoring installed & data reviewed where applicable. \n",null,"Project team & supply chain / sub-contractors"]
[null,{"$f":"'Aspect Register - PRINT'!$C$19","v":5},"f",{"$f":"'Aspect Register - PRINT'!$D$19","v":"Demolition Works"},{"$f":"'Aspect Register - PRINT'!$F$12","v":"Noise,  Light or Vibration"},"Normal","Disturbance to neighbouring communities.\nDisturbance of flora & fauna.\nDamage to neighbouring buildings.",{"$f":"'Aspect Register - PRINT'!F19","v":0},{"$f":"IF(H15=0,4,IF(H15=\"N/A\",4,IF(H15=\"Low\",3,IF(H15=\"Med\",2,IF(H15=\"Sig\",1)))))","v":4},"Assess potential for damage to neighbouring buildings.\nCommunicate with local residents. \nIdentify nearby sensitive properties or receptors.\nSite machinery / plant away from sensitive areas.\nNoise/Vibration monitoring installed & data reviewed where applicable.\nPlant and vehicle maintenance in accordance with the manufacturers instructions.\nAdhere to any relevant planning conditions.\nConsider setting up acoustic sound barriers when reasonably practicable.\nConsider the requirement for Section 61 Notice application and comply.\n","Use of electric plant / vehicles.","Project team & supply chain / sub-contractors."]
[null,{"$f":"'Aspect Register - PRINT'!$C$19","v":5},"p",{"$f":"'Aspect Register - PRINT'!$D$19","v":"Demolition Works"},{"$f":"'Aspect Register - PRINT'!$P$12","v":"Ecology & Biodiversity"},"Normal","Disturbance or harm to local flora & fauna.\nDamage or destruction of habitat.",{"$f":"'Aspect Register - PRINT'!P19","v":0},{"$f":"IF(H16=0,4,IF(H16=\"N/A\",4,IF(H16=\"Low\",3,IF(H16=\"Med\",2,IF(H16=\"Sig\",1)))))","v":4},"Ecological and Arboricultural surveys reviewed and findings communicated on Site Constraints Plan and at site induction.\nObtain a European Protected (EPS) license if required.\nConditions of any license regularly communicated to site team and supply chain via specific Toolbox Talks\nWorks preceded by ecologist check and/or supervised by Ecological Clerk of Works if required.\nSensitive areas protected from unauthorised access.\nAny TPO and/or trees on site that are to be retained will need to be protected with fencing in accordance with the Tree Protection Plan and BS5837.\nProtective measures regularly monitored and maintained, e.g. Newt fencing / Root Protection Zones.\nNo materials to be stored within the protection zone nor access granted, and the use of heavy plant and equipment is to be reviewed in line with any recommendations made regarding the root protection zone.\n","Protecting existing habitats and incorporating them into the development.","Project team & supply chain / sub-contractors"]
[null,{"$f":"'Aspect Register - PRINT'!$C$19","v":5},"i",{"$f":"'Aspect Register - PRINT'!$D$19","v":"Demolition Works"},{"$f":"'Aspect Register - PRINT'!$I$12","v":"Visual Impact"},"Normal","Disturb neighbouring communities.",{"$f":"'Aspect Register - PRINT'!I19","v":0},{"$f":"IF(H17=0,4,IF(H17=\"N/A\",4,IF(H17=\"Low\",3,IF(H17=\"Med\",2,IF(H17=\"Sig\",1)))))","v":4},"Appropriate housekeeping of materials and waste.\nScraping & sweeping of roads & access routes as necessary.\nVehicles adhering to the Traffic Management Plan and site speed limit.\nEquipment maintained in accordance with the manufacturers instructions.\nAdhere to any relevant planning conditions.\nCommunicate with local residents. \nIdentify nearby sensitive properties or receptors.\nLocate activity away from sensitive areas where possible.\n",null,"Project team & supply chain / sub-contractors"]
[null,{"$f":"'Aspect Register - PRINT'!$C$19","v":5},"l",{"$f":"'Aspect Register - PRINT'!$D$19","v":"Demolition Works"},{"$f":"'Aspect Register - PRINT'!$L$12","v":"Waste"},"Normal","Increased landfill or energy required to recycle. \nLittering / fly-tipping.\nBreach of legislation due to use of unauthorised carriers and/or disposal sites.",{"$f":"'Aspect Register - PRINT'!L19","v":0},{"$f":"IF(H18=0,4,IF(H18=\"N/A\",4,IF(H18=\"Low\",3,IF(H18=\"Med\",2,IF(H18=\"Sig\",1)))))","v":4},"Incorporation of approved methods into RAMS & briefed\nApply the waste hierarchy e.g. Eliminate - Reduce - Reuse - Recycle.\nEnsure correct segregation and storage of waste streams.\nUse of Persimmon approved waste contractors.\nObtain Duty Of Care documentation for all waste contractors.\nRetain waste transfer notes (WTN) for min. 2 years or min. 3 years for hazardous consignment note.\nPrevent wind blown waste i.e. skip covers, haulage lorries covered etc.\nCommunicate site requirements at site induction.\n",null,"Project team & supply chain / sub-contractors."]
[null,{"$f":"'Aspect Register - PRINT'!$C$19","v":5},"m",{"$f":"'Aspect Register - PRINT'!$D$19","v":"Demolition Works"},{"$f":"'Aspect Register - PRINT'!$M$12","v":"Cultural Heritage"},"Normal","Damage to listed/protected buildings or ancient monuments.\nDamage to artifacts of historical/archaeological interest.",{"$f":"'Aspect Register - PRINT'!M19","v":0},{"$f":"IF(H19=0,4,IF(H19=\"N/A\",4,IF(H19=\"Low\",3,IF(H19=\"Med\",2,IF(H19=\"Sig\",1)))))","v":4},"Conduct desktop survey and if necessary commission further investigation to understand the level of risk.\nMaintain watching brief during groundwork phases where required.\nIf artifacts of potential value are found, works to be stopped and an archaeological consultant appointed.\nReport any findings to Historic England and Local Planning Authority. \nObtain relevant consent / licence from Historic England if required.\nIncorporation of approved methods into RAMS & briefed.\nCommunicate site requirements on Site Constraints Plan and at site induction.\n","Culturally significant structures/items incorporated into development.","Project team & supply chain / sub-contractors"]
[null,{"$f":"'Aspect Register - PRINT'!$C$19","v":5},"j",{"$f":"'Aspect Register - PRINT'!$D$19","v":"Demolition Works"},{"$f":"'Aspect Register - PRINT'!$J$12","v":"Ground & Surface Water"},"Normal","Pollution of controlled waters.\n",{"$f":"'Aspect Register - PRINT'!J19","v":0},{"$f":"IF(H20=0,4,IF(H20=\"N/A\",4,IF(H20=\"Low\",3,IF(H20=\"Med\",2,IF(H20=\"Sig\",1)))))","v":4},"Protection of drains to prevent silt ingress.\nPrevent run-off from leaving site.\nIdentify watercourses, ditches, drains within, or close to, the site boundary on the Site Drainage Plan.\nDo not store materials closer than 10m to drains. \nCommunicate risks to supply chain.\nCarry out spill training to site team.\n",null,"Project team & supply chain / sub-contractors. "]
[null,{"$f":"'Aspect Register - PRINT'!$C$19","v":5},"n",{"$f":"'Aspect Register - PRINT'!$D$19","v":"Demolition Works"},{"$f":"'Aspect Register - PRINT'!$N$12","v":"Land Contamination"},"Normal","Pollution of land and nearby watercourses.\nRisk to human health.",{"$f":"'Aspect Register - PRINT'!N19","v":0},{"$f":"IF(H21=0,4,IF(H21=\"N/A\",4,IF(H21=\"Low\",3,IF(H21=\"Med\",2,IF(H21=\"Sig\",1)))))","v":4},"Carry out a Site Investigation to identify any potential existing contamination.\nAnalyse soil for health risks and waste acceptance criteria.\nRemediate any contamination to allow for reuse.\nIf the contamination is not suitable for use remove it from site as Hazardous Waste.\nPlan your site so that you can separate contaminated materials from non-contaminated materials.\nIf any unexpected contamination is found during works, stop work until the materials have been adequately identified.\nStockpiles to be kept free of vehicle, plant, equipment, litter, spillages etc.\nComply with local planning authority conditions..\nEnsure RAMS are in placed for activity.\nSegregate stockpiles.\nProvide COSHH, fuels etc with appropriate containment e.g. bunded, double-skinned tanks, plant nappy / enviropad for small items of plant.\nInstall dust/odour suppression where required.\nDo not store materials closer than 10m to drains.\nCarry out a Verification testing and reporting to confirm that the remediation/risk management design has been implemented.\nCommunicate risks to Supply Chain.\n","Opportunity to locally remediate land and improve quality. ","Project team & supply chain / sub-contractors"]
[null,{"$f":"'Aspect Register - PRINT'!$C$14","v":1},"i",{"$f":"'Aspect Register - PRINT'!$D$14","v":"Procurement, Deliveries & Transportation"},{"$f":"'Aspect Register - PRINT'!$I$12","v":"Visual Impact"},null,"Disturb neighbouring communities.",{"$f":"'Aspect Register - PRINT'!I14","v":0},{"$f":"IF(H22=0,4,IF(H22=\"N/A\",4,IF(H22=\"Low\",3,IF(H22=\"Med\",2,IF(H22=\"Sig\",1)))))","v":4},"Ensuring local / planning restrictions such as delivery times are met.\nConsider routes that bypass sensitive areas such as schools or shopping areas.\nConsider traffic speed limits on approach to site.\nVehicles adhering to the Traffic Management Plan and site speed limit.\nInstall protection measures for property, street furniture, soft banks etc.\nDisplay sufficient directional signage for deliveries and traffic marshalling where required.\nCommunicate with local residents.\n",null,"Project team & supply chain / sub-contractors"]
[null,{"$f":"'Aspect Register - PRINT'!$C$14","v":1},"k",{"$f":"'Aspect Register - PRINT'!$D$14","v":"Procurement, Deliveries & Transportation"},{"$f":"'Aspect Register - PRINT'!$K$12","v":"Air Pollution"},null,"Emissions reducing local air quality, contributing to global warming and Persimmon's carbon footprint.\nVapour and/or fumes released causing harm and/or nuisance to local community.",{"$f":"'Aspect Register - PRINT'!K14","v":0},{"$f":"IF(H23=0,4,IF(H23=\"N/A\",4,IF(H23=\"Low\",3,IF(H23=\"Med\",2,IF(H23=\"Sig\",1)))))","v":4},"Promote sustainable practices throughout our supply chain.\nPrioritise EV deliveries where possible.\nConsider use of (GreenD+) HVO fuel as replacement for diesel. \nEnsure plant & equipment is well maintained as per manufacturers recommendations. \nReduce idling time by switching off plant when not in use.\n","Use of EV / hydrogen powered plant.","Project team & supply chain / sub-contractors"]
[null,{"$f":"'Aspect Register - PRINT'!$C$14","v":1},"p",{"$f":"'Aspect Register - PRINT'!$D$14","v":"Procurement, Deliveries & Transportation"},{"$f":"'Aspect Register - PRINT'!$P$12","v":"Ecology & Biodiversity"},null,"Disturbance or harm to local flora & fauna.\nDamage or destruction of habitat.",{"$f":"'Aspect Register - PRINT'!P14","v":0},{"$f":"IF(H24=0,4,IF(H24=\"N/A\",4,IF(H24=\"Low\",3,IF(H24=\"Med\",2,IF(H24=\"Sig\",1)))))","v":4},"Ecological surveys reviewed and findings communicated on Site Constraints Plan and at site induction.\nSensitive areas protected from unauthorised access.\nProtective measures regularly monitored and maintained, e.g. Newt fencing / Root Protection Zones.\n",null,"Project team & supply chain / sub-contractors"]
[null,{"$f":"'Aspect Register - PRINT'!$C$14","v":1},"n",{"$f":"'Aspect Register - PRINT'!$D$14","v":"Procurement, Deliveries & Transportation"},{"$f":"'Aspect Register - PRINT'!$N$12","v":"Land Contamination"},null,"Pollution of land and nearby watercourses.\nRisk to human health.",{"$f":"'Aspect Register - PRINT'!N14","v":0},{"$f":"IF(H25=0,4,IF(H25=\"N/A\",4,IF(H25=\"Low\",3,IF(H25=\"Med\",2,IF(H25=\"Sig\",1)))))","v":4},"Carry out a Site Investigation to identify any potential existing contamination.\nStore materials away from contaminated area.\nIf any unexpected contamination is found during works, stop work until the materials have been adequately identified.\nCarry out spill training to site team.\nPlant and vehicle maintenance in accordance with the manufacturers instructions.\nSupervise operation of subcontractor and hired plant and equipment.\nSwitch off engines when plant not in use.\nMaintenance of access tracks / roads.\n",null,"Project team & supply chain / sub-contractors"]
[null,{"$f":"'Aspect Register - PRINT'!$C$14","v":1},"o",{"$f":"'Aspect Register - PRINT'!$D$14","v":"Procurement, Deliveries & Transportation"},{"$f":"'Aspect Register - PRINT'!$O$12","v":"Resource Use \ne.g. Materials, Energy or Water"},"Normal","Emission of air pollutants from fossil fuel combustion\nIncreased GHG emissions contributing to climate change\nConsumption of natural resources",{"$f":"'Aspect Register - PRINT'!O14","v":0},{"$f":"IF(H26=0,4,IF(H26=\"N/A\",4,IF(H26=\"Low\",3,IF(H26=\"Med\",2,IF(H26=\"Sig\",1)))))","v":4},"Ensure sustainable goods are procured, such as FSC / PEFC certified timber. \nPrioritise supply chain partners with BES6001 and / or 14001 accreditation.\nProcure local materials where possible. \nEnsure materials purchased contain low embodied carbon (energy).\nEnsure take-back schemes for packaging and unused amounts of materials are in place.\nStore materials so as to prevent damage, vehicle impact and provide cover where susceptible to water damage.\n","Consider use of Green HVO+ fuel and hybrid equipment.","Project team & supply chain / sub-contractors"]
[null,{"$f":"'Aspect Register - PRINT'!$C$14","v":1},"l",{"$f":"'Aspect Register - PRINT'!$D$14","v":"Procurement, Deliveries & Transportation"},{"$f":"'Aspect Register - PRINT'!$L$12","v":"Waste"},"Normal","Increased landfill or energy required to recycle. \nLittering / fly-tipping.\nBreach of legislation due to use of unauthorised carriers and/or disposal sites.",{"$f":"'Aspect Register - PRINT'!L14","v":0},{"$f":"IF(H27=0,4,IF(H27=\"N/A\",4,IF(H27=\"Low\",3,IF(H27=\"Med\",2,IF(H27=\"Sig\",1)))))","v":4},"Consider product life-cycle costing.\nApply the waste hierarchy e.g. Eliminate - Reduce - Reuse - Recycle.\nEnsure correct segregation and storage of waste streams.\nUse of Persimmon approved waste contractors.\nObtain Duty Of Care documentation for all waste contractors.\nRetain waste transfer notes (WTN) for min. 2 years or min. 3 years for hazardous consignment note.\nPrevent wind blown waste i.e. skip covers, haulage lorries covered etc.\nCommunicate site requirements at site induction.\n",null,"Project team & supply chain / sub-contractors"]
[null,{"$f":"'Aspect Register - PRINT'!$C$15","v":2},"k",{"$f":"'Aspect Register - PRINT'!$D$15","v":"Use of Plant & Vehicles, inc. Maintenance"},{"$f":"'Aspect Register - PRINT'!$K$12","v":"Air Pollution"},"Normal","Emissions reducing local air quality, contributing to global warming and Persimmon's carbon footprint.\nVapour and/or fumes released causing harm and/or nuisance to local community.",{"$f":"'Aspect Register - PRINT'!K15","v":0},{"$f":"IF(H28=0,4,IF(H28=\"N/A\",4,IF(H28=\"Low\",3,IF(H28=\"Med\",2,IF(H28=\"Sig\",1)))))","v":4},"Prioritise battery powered / electric equipment where possible.\nConsider use of (GreenD+) HVO fuel as replacement for diesel. \nEnsure plant & equipment is well maintained as per manufacturers recommendations. \nReduce idling time by switching off plant when not in use.\n","Use of EV / hydrogen powered plant.","Project team & supply chain / sub-contractors. "]
[null,{"$f":"'Aspect Register - PRINT'!$C$15","v":2},"f",{"$f":"'Aspect Register - PRINT'!$D$15","v":"Use of Plant & Vehicles, inc. Maintenance"},{"$f":"'Aspect Register - PRINT'!$F$12","v":"Noise,  Light or Vibration"},"Normal","Disturbance to neighbouring communities.\nDisturbance of flora & fauna.",{"$f":"'Aspect Register - PRINT'!F15","v":0},{"$f":"IF(H29=0,4,IF(H29=\"N/A\",4,IF(H29=\"Low\",3,IF(H29=\"Med\",2,IF(H29=\"Sig\",1)))))","v":4},"Plant and vehicle maintenance in accordance with the manufacturers instructions.\nAdhere to site speed limits.\nSwitch off engines when plant not in use.\nMaintenance of access tracks / roads. \nCommunicate with local residents. \nIdentify nearby sensitive properties or receptors.\nSite machinery / plant away from sensitive areas.\nNoise/Vibration monitoring installed & data reviewed where applicable.\nConsider the requirement for Section 61 Notice application and comply.\n","Consider use battery equipment.\nUse of electric plant / vehicles.\nPrioritise TBS connection.","Project team & supply chain / sub-contractors."]
[null,{"$f":"'Aspect Register - PRINT'!$C$15","v":2},"p",{"$f":"'Aspect Register - PRINT'!$D$15","v":"Use of Plant & Vehicles, inc. Maintenance"},{"$f":"'Aspect Register - PRINT'!$P$12","v":"Ecology & Biodiversity"},"Normal","Disturbance or harm to local flora & fauna.\nDamage or destruction of habitat.",{"$f":"'Aspect Register - PRINT'!P15","v":0},{"$f":"IF(H30=0,4,IF(H30=\"N/A\",4,IF(H30=\"Low\",3,IF(H30=\"Med\",2,IF(H30=\"Sig\",1)))))","v":4},"Ecological and Arboricultural surveys reviewed and findings communicated on Site Constraints Plan and at site induction.\nObtain a European Protected (EPS) license if required.\nConditions of any license regularly communicated to site team and supply chain via specific Toolbox Talks\nVehicles adhering to the Traffic Management Plan and site speed limit.\nEquipment maintained in accordance with the manufacturers instructions.\nAny TPO and/or trees on site that are to be retained will need to be protected with fencing in accordance with the Tree Protection Plan and BS5837.\nWorks preceded by ecologist check and/or supervised by Ecological Clerk of Works if required.\nSensitive areas protected from unauthorised access.\nProtective measures regularly monitored and maintained, e.g. Newt fencing / Root Protection Zones.\n",null,"Project team & supply chain / sub-contractors"]
[null,{"$f":"'Aspect Register - PRINT'!$C$15","v":2},"j",{"$f":"'Aspect Register - PRINT'!$D$15","v":"Use of Plant & Vehicles, inc. Maintenance"},{"$f":"'Aspect Register - PRINT'!$J$12","v":"Ground & Surface Water"},"Normal","Pollution of controlled waters.\n",{"$f":"'Aspect Register - PRINT'!J15","v":0},{"$f":"IF(H31=0,4,IF(H31=\"N/A\",4,IF(H31=\"Low\",3,IF(H31=\"Med\",2,IF(H31=\"Sig\",1)))))","v":4},"Provide spill kits where necessary and plant nappy for refuelling.\nSmall plant and machinery to be placed on Enviropad or similar.\nCarry out spill training to site team.\nPlant and vehicle maintenance in accordance with the manufacturers instructions.\nSupervise operation of subcontractor and hired plant and equipment.\nSwitch off engines when plant not in use.\nMaintenance of access tracks / roads.\nIdentify watercourses, ditches, drains within, or close to, the site boundary on the Site Drainage Plan. \nCommunicate risks to supply chain.\n",null,"Project team & supply chain / sub-contractors. "]
[null,{"$f":"'Aspect Register - PRINT'!$C$15","v":2},"o",{"$f":"'Aspect Register - PRINT'!$D$15","v":"Use of Plant & Vehicles, inc. Maintenance"},{"$f":"'Aspect Register - PRINT'!$O$12","v":"Resource Use \ne.g. Materials, Energy or Water"},"Normal","Emission of air pollutants from fossil fuel combustion\nIncreased GHG emissions contributing to climate change\nConsumption of natural resources",{"$f":"'Aspect Register - PRINT'!O15","v":0},{"$f":"IF(H32=0,4,IF(H32=\"N/A\",4,IF(H32=\"Low\",3,IF(H32=\"Med\",2,IF(H32=\"Sig\",1)))))","v":4},"Plant and vehicle maintenance in accordance with the manufacturers instructions.\nChoose the right machine for the task – avoid inefficient oversized machines.\nSwitch off engines when plant not in use.\nPrioritise battery powered / electric equipment where possible.\nConsider use of (GreenD+) HVO fuel as replacement for diesel.\nCar share where practicable on business journeys.\n","Consider use of Green HVO+ fuel and hybrid equipment.","Project team & supply chain / sub-contractors"]
[null,{"$f":"'Aspect Register - PRINT'!$C$15","v":2},"g",{"$f":"'Aspect Register - PRINT'!$D$15","v":"Use of Plant & Vehicles, inc. Maintenance"},{"$f":"'Aspect Register - PRINT'!$G$12","v":"Dust or Odour"},"Normal","Disturb or harm to neighbouring communities.\nDisturb or harm to local fauna.",{"$f":"'Aspect Register - PRINT'!G15","v":0},{"$f":"IF(H33=0,4,IF(H33=\"N/A\",4,IF(H33=\"Low\",3,IF(H33=\"Med\",2,IF(H33=\"Sig\",1)))))","v":4},"Install base course and sub-base of roads as early as possible.\nUse of dust suppression / dampen down activities.\nScraping & sweeping of roads as necessary.\nVehicles adhering to the Traffic Management Plan and site speed limit.\nTelehandler to remain on installed roads where possible.\nEquipment maintained in accordance with the manufacturers instructions.\nAdhere to any relevant planning conditions.\nCommunicate with local residents.\nDust monitoring installed & data reviewed where applicable. \nIdentify nearby sensitive properties or receptors.\nLocate activity away from sensitive areas where possible.\nConsider use of wheel wash.\n",null,"Project team & supply chain / sub-contractors"]
[null,{"$f":"'Aspect Register - PRINT'!$C$15","v":2},"m",{"$f":"'Aspect Register - PRINT'!$D$15","v":"Use of Plant & Vehicles, inc. Maintenance"},{"$f":"'Aspect Register - PRINT'!$M$12","v":"Cultural Heritage"},null,"Damage to listed/protected buildings or ancient monuments.\nDamage to artifacts of historical/archaeological interest.",{"$f":"'Aspect Register - PRINT'!M15","v":0},{"$f":"IF(H34=0,4,IF(H34=\"N/A\",4,IF(H34=\"Low\",3,IF(H34=\"Med\",2,IF(H34=\"Sig\",1)))))","v":4},"Conduct desktop survey and if necessary commission further investigation to understand the level of risk.\nMaintain watching brief during groundwork phases where required.\nLocation of plant away from sensitive areas.\nIf artifacts of potential value are found, works to be stopped and an archaeological consultant appointed.\nReport any findings to Historic England and Local Planning Authority. \nObtain relevant consent / licence from Historic England if required.\nIncorporation of approved methods into RAMS & briefed.\nCommunicate site requirements on Environmental Information Board and at site induction.\n",null,"Project team & supply chain / sub-contractors"]
[null,{"$f":"'Aspect Register - PRINT'!$C$15","v":2},"l",{"$f":"'Aspect Register - PRINT'!$D$15","v":"Use of Plant & Vehicles, inc. Maintenance"},{"$f":"'Aspect Register - PRINT'!$L$12","v":"Waste"},"Normal","Increased landfill or energy required to recycle. \nLittering / fly-tipping.\nBreach of legislation due to use of unauthorised carriers and/or disposal sites.",{"$f":"'Aspect Register - PRINT'!L15","v":0},{"$f":"IF(H35=0,4,IF(H35=\"N/A\",4,IF(H35=\"Low\",3,IF(H35=\"Med\",2,IF(H35=\"Sig\",1)))))","v":4},"Plant and vehicle maintenance in accordance with the manufacturers instructions.\nApply the waste hierarchy e.g. Eliminate - Reduce - Reuse - Recycle.\nEnsure correct segregation and storage of waste streams.\nUse of Persimmon approved waste contractors.\nObtain Duty Of Care documentation for all waste contractors.\nRetain waste transfer notes (WTN) for min. 2 years or min. 3 years for hazardous consignment note.\nPrevent wind blown waste i.e. skip covers, haulage lorries covered etc.\nCommunicate site requirements at site induction.\n",null," Project team & supply chain / sub-contractors"]
[null,{"$f":"'Aspect Register - PRINT'!$C$15","v":2},"h",{"$f":"'Aspect Register - PRINT'!$D$15","v":"Use of Plant & Vehicles, inc. Maintenance"},{"$f":"'Aspect Register - PRINT'!$H$12","v":"Highway Traffic"},"Normal","Congestion on local roads causing nuisance.\n",{"$f":"'Aspect Register - PRINT'!H15","v":0},{"$f":"IF(H36=0,4,IF(H36=\"N/A\",4,IF(H36=\"Low\",3,IF(H36=\"Med\",2,IF(H36=\"Sig\",1)))))","v":4},"Adhere to any planning restrictions.\nTraffic management plan to avoid use of plant on public roads where possible.\nConsider traffic speed limits on approach to site.\nVehicles adhering to the Traffic Management Plan and site speed limit.\nInstall protection measures for property, street furniture, soft banks etc.\nTraffic marshalling used where required.\nCommunicate with local residents.\n",null,"Project team & supply chain / sub-contractors"]
[null,{"$f":"'Aspect Register - PRINT'!$C$15","v":2},"n",{"$f":"'Aspect Register - PRINT'!$D$15","v":"Use of Plant & Vehicles, inc. Maintenance"},{"$f":"'Aspect Register - PRINT'!$N$12","v":"Land Contamination"},null,"Pollution of land and nearby watercourses.\nRisk to human health.",{"$f":"'Aspect Register - PRINT'!N15","v":0},{"$f":"IF(H37=0,4,IF(H37=\"N/A\",4,IF(H37=\"Low\",3,IF(H37=\"Med\",2,IF(H37=\"Sig\",1)))))","v":4},"Provide spill kits where necessary and plant nappy for refuelling.\nSmall plant and machinery to be placed on Enviropad or similar.\nCarry out spill training to site team.\nPlant and vehicle maintenance in accordance with the manufacturers instructions.\nSupervise operation of subcontractor and hired plant and equipment.\nSwitch off engines when plant not in use.\nMaintenance of access tracks / roads.\nIdentify watercourses, ditches, drains within, or close to, the site boundary on the Site Drainage Plan. \nCommunicate risks to supply chain.\n",null,"Project team & supply chain / sub-contractors"]
[null,{"$f":"'Aspect Register - PRINT'!$C$15","v":2},"i",{"$f":"'Aspect Register - PRINT'!$D$15","v":"Use of Plant & Vehicles, inc. Maintenance"},{"$f":"'Aspect Register - PRINT'!$I$12","v":"Visual Impact"},"Normal","Disturb neighbouring communities.",{"$f":"'Aspect Register - PRINT'!I15","v":0},{"$f":"IF(H38=0,4,IF(H38=\"N/A\",4,IF(H38=\"Low\",3,IF(H38=\"Med\",2,IF(H38=\"Sig\",1)))))","v":4},"Vehicles adhering to the Traffic Management Plan and site speed limit.\nEquipment maintained in accordance with the manufacturers instructions.\nTelehandler to remain on installed roads where possible.\nAdhere to any relevant planning conditions.\nCommunicate with local residents.\nIdentify nearby sensitive properties or receptors.\nLocate activity away from sensitive areas where possible.\nConsider use of wheel wash.\nSupervise operation of subcontractor and hired plant and equipment.\nSwitch off engines when plant not in use.\nMaintenance of access tracks / roads.\n",null,"Project team & supply chain / sub-contractors"]
[null,{"$f":"'Aspect Register - PRINT'!$C$14","v":1},"q",{"$f":"'Aspect Register - PRINT'!$D$14","v":"Procurement, Deliveries & Transportation"},"Other - Please complete","Normal","Please complete",{"$f":"'Aspect Register - PRINT'!Q14","v":0},{"$f":"IF(H39=0,4,IF(H39=\"N/A\",4,IF(H39=\"Low\",3,IF(H39=\"Med\",2,IF(H39=\"Sig\",1)))))","v":4},"Please complete","Please complete","Please complete"]
[null,{"$f":"'Aspect Register - PRINT'!$C$15","v":2},"q",{"$f":"'Aspect Register - PRINT'!$D$15","v":"Use of Plant & Vehicles, inc. Maintenance"},"Other - Please complete","Normal","Please complete",{"$f":"'Aspect Register - PRINT'!Q15","v":0},{"$f":"IF(H40=0,4,IF(H40=\"N/A\",4,IF(H40=\"Low\",3,IF(H40=\"Med\",2,IF(H40=\"Sig\",1)))))","v":4},"Please complete","Please complete","Please complete"]
[null,{"$f":"'Aspect Register - PRINT'!$C$16","v":3},"f",{"$f":"'Aspect Register - PRINT'!$D$16","v":"Site Office, Welfare & Compound Operation"},{"$f":"'Aspect Register - PRINT'!$F$12","v":"Noise,  Light or Vibration"},"Normal","Disturbance to neighbouring communities.\nDisturbance of flora & fauna.",{"$f":"'Aspect Register - PRINT'!F16","v":0},{"$f":"IF(H41=0,4,IF(H41=\"N/A\",4,IF(H41=\"Low\",3,IF(H41=\"Med\",2,IF(H41=\"Sig\",1)))))","v":4},"Where possible ensure cabins are sited away from neighbouring properties. \nUse sensitive lighting which is turned off at appropriate hours and facing away from any adjoining properties.\nLocate and direct lighting in accordance with any ecological recommendations.\nCommunicate with local residents. \nAdhere to any relevant planning conditions.\nIdentify nearby sensitive properties or receptors.\nSite machinery / plant away from sensitive areas.\nNoise/Vibration monitoring installed & data reviewed where applicable.\nConsider the requirement for Section 61 Notice application and comply.\n","Use of Eco Cabins.\nPrioritise TBS Connection.\nUse of Hybrid & battery backup generators.","Project team & supply chain / sub-contractors."]
[null,{"$f":"'Aspect Register - PRINT'!$C$16","v":3},"k",{"$f":"'Aspect Register - PRINT'!$D$16","v":"Site Office, Welfare & Compound Operation"},{"$f":"'Aspect Register - PRINT'!$K$12","v":"Air Pollution"},null,"Emissions reducing local air quality, contributing to global warming and Persimmon's carbon footprint.\nVapour and/or fumes released causing harm and/or nuisance to local community.",{"$f":"'Aspect Register - PRINT'!K16","v":0},{"$f":"IF(H42=0,4,IF(H42=\"N/A\",4,IF(H42=\"Low\",3,IF(H42=\"Med\",2,IF(H42=\"Sig\",1)))))","v":4},"Consider use of \"Eco-Cabins\" to reduce energy required.\nConsider use of hybrid generator or battery storage units to reduce generator run time.\nConsider use of (GreenD+) HVO fuel as replacement for diesel. \nEnsure plant & equipment is well maintained as per manufacturers recommendations. \nWelfare facilities connected to foul drainage system or regular maintenance of septic tank.\n",null,"Project team & supply chain / sub-contractors. "]
[null,{"$f":"'Aspect Register - PRINT'!$C$16","v":3},"m",{"$f":"'Aspect Register - PRINT'!$D$16","v":"Site Office, Welfare & Compound Operation"},{"$f":"'Aspect Register - PRINT'!$M$12","v":"Cultural Heritage"},null,"Damage to listed/protected buildings or ancient monuments.\nDamage to artifacts of historical/archaeological interest.",{"$f":"'Aspect Register - PRINT'!M16","v":0},{"$f":"IF(H43=0,4,IF(H43=\"N/A\",4,IF(H43=\"Low\",3,IF(H43=\"Med\",2,IF(H43=\"Sig\",1)))))","v":4},"Conduct desktop survey and if necessary commission further investigation to understand the level of risk.\nMaintain watching brief during groundwork phases where required.\nIf artifacts of potential value are found, works to be stopped and an archaeological consultant appointed.\nReport any findings to Historic England and Local Planning Authority. \nObtain relevant consent / licence from Historic England if required.\nIncorporation of approved methods into RAMS & briefed.\nCommunicate site requirements on Site Constraints Plan and at site induction.\n",null,"Project team & supply chain / sub-contractors"]
[null,{"$f":"'Aspect Register - PRINT'!$C$16","v":3},"p",{"$f":"'Aspect Register - PRINT'!$D$16","v":"Site Office, Welfare & Compound Operation"},{"$f":"'Aspect Register - PRINT'!$P$12","v":"Ecology & Biodiversity"},"Normal","Disturbance or harm to local flora & fauna.\nDamage or destruction of habitat.",{"$f":"'Aspect Register - PRINT'!P16","v":0},{"$f":"IF(H44=0,4,IF(H44=\"N/A\",4,IF(H44=\"Low\",3,IF(H44=\"Med\",2,IF(H44=\"Sig\",1)))))","v":4},"Ecological and Arboricultural surveys reviewed and findings communicated on Site Constraints Plan and at site induction.\nObtain a European Protected (EPS) license if required.\nConditions of any license regularly communicated to site team and supply chain via specific Toolbox Talks\nVehicles adhering to the Traffic Management Plan and site speed limit.\nEquipment maintained in accordance with the manufacturers instructions.\nAny TPO and/or trees on site that are to be retained will need to be protected with fencing in accordance with the Tree Protection Plan and BS5837.\nWorks preceded by ecologist check and/or supervised by Ecological Clerk of Works if required.\nSensitive areas protected from unauthorised access.\nProtective measures regularly monitored and maintained, e.g. Newt fencing / Root Protection Zones.\nSensitive lighting in place pointing down or away from site boundary.\n"]
[null,{"$f":"'Aspect Register - PRINT'!$C$16","v":3},"j",{"$f":"'Aspect Register - PRINT'!$D$16","v":"Site Office, Welfare & Compound Operation"},{"$f":"'Aspect Register - PRINT'!$J$12","v":"Ground & Surface Water"},"Normal","Pollution of controlled waters.\nContamination of public sewer system.",{"$f":"'Aspect Register - PRINT'!J16","v":0},{"$f":"IF(H45=0,4,IF(H45=\"N/A\",4,IF(H45=\"Low\",3,IF(H45=\"Med\",2,IF(H45=\"Sig\",1)))))","v":4},"Site cabin discharge connected to foul sewer or septic tank.\nNo discharge to be made to ground / surface waters. \nIdentify watercourses, ditches, drains within, or close to, the site boundary on the Site Drainage Plan. \nCommunicate risks to supply chain.\nDo not store materials closer than 10m to drains.\nCarry out spill training to site team.\n",null,"Project team & supply chain / sub-contractors. "]
[null,{"$f":"'Aspect Register - PRINT'!$C$16","v":3},"n",{"$f":"'Aspect Register - PRINT'!$D$16","v":"Site Office, Welfare & Compound Operation"},{"$f":"'Aspect Register - PRINT'!$N$12","v":"Land Contamination"},null,"Pollution of land and nearby watercourses.\nRisk to human health.",{"$f":"'Aspect Register - PRINT'!N16","v":0},{"$f":"IF(H46=0,4,IF(H46=\"N/A\",4,IF(H46=\"Low\",3,IF(H46=\"Med\",2,IF(H46=\"Sig\",1)))))","v":4},"Carry out a Site Investigation to identify any potential existing contamination.\nAnalyse inert waste for health risks and waste acceptance criteria.\nRemediate any contamination to allow for reuse.\nIf the contamination is not suitable for use remove it from site as Hazardous Waste.\nPlan your site so that you can separate contaminated materials from non-contaminated materials.\nIf any unexpected contamination is found during works, stop work until the materials have been adequately identified.\nSite cabin discharge connected to foul sewer or septic tank.\nNo discharge to be made to the ground or watercourses. \nIdentify watercourses, ditches, drains within, or close to, the site boundary on the Site Drainage Plan. \nCommunicate risks to supply chain.\nDo not store materials closer than 10m to drains.\nCarry out spill training to site team.\nCommunicate risks to the workforce.\n",null,"Project team & supply chain / sub-contractors"]
[null,{"$f":"'Aspect Register - PRINT'!$C$16","v":3},"q",{"$f":"'Aspect Register - PRINT'!$D$16","v":"Site Office, Welfare & Compound Operation"},"Other - Please complete","Normal","Please complete",{"$f":"'Aspect Register - PRINT'!Q16","v":0},{"$f":"IF(H47=0,4,IF(H47=\"N/A\",4,IF(H47=\"Low\",3,IF(H47=\"Med\",2,IF(H47=\"Sig\",1)))))","v":4},"Please complete","Please complete","Please complete"]
[null,{"$f":"'Aspect Register - PRINT'!$C$16","v":3},"o",{"$f":"'Aspect Register - PRINT'!$D$16","v":"Site Office, Welfare & Compound Operation"},{"$f":"'Aspect Register - PRINT'!$O$12","v":"Resource Use \ne.g. Materials, Energy or Water"},"Normal","Emission of air pollutants from fossil fuel combustion\nIncreased GHG emissions contributing to climate change\nConsumption of natural resources",{"$f":"'Aspect Register - PRINT'!O16","v":0},{"$f":"IF(H48=0,4,IF(H48=\"N/A\",4,IF(H48=\"Low\",3,IF(H48=\"Med\",2,IF(H48=\"Sig\",1)))))","v":4},"Ensure earliest possible connection to grid electricity via TBS.\nConsider use of \"Eco-Cabins\" to reduce energy required.\nConsider use of hybrid generator or battery storage units to reduce generator run time.\nConsider use of (GreenD+) HVO fuel as replacement for diesel.\nReduce usage of ink cartridges by saving records electronically.\nPrinters within the site office to be set to double side print to reduce paper usage \nInstall energy efficient security and task lighting such as LED\nElectrical equipment turned off when not in use\nMeasure eKPIs (diesel, electric, waster usage).\nWhere practicable, use lower water consumption flush function on dual flush toilets.\n","Use of Smart Energy Management Distribution Board (Speedy / Sunbelt).\nRainwater harvesting.","Project team & supply chain / sub-contractors"]
[null,{"$f":"'Aspect Register - PRINT'!$C$16","v":3},"i",{"$f":"'Aspect Register - PRINT'!$D$16","v":"Site Office, Welfare & Compound Operation"},{"$f":"'Aspect Register - PRINT'!$I$12","v":"Visual Impact"},"Normal","Disturb neighbouring communities.\nDisturb local fauna.",{"$f":"'Aspect Register - PRINT'!I16","v":0},{"$f":"IF(H49=0,4,IF(H49=\"N/A\",4,IF(H49=\"Low\",3,IF(H49=\"Med\",2,IF(H49=\"Sig\",1)))))","v":4},"Ensure windows are not directly facing onto adjoining properties and consider location sensitive receptors when locating cabin setup.\nEnsure office waste is enclosed and well managed.\nGood housekeeping of materials.\nCompound machinery/plant (e.g. generators) away from boundaries where possible.\nLighting to be directed away from site boundary and turned off when not being used.","Hoarding could be used to inform community regarding works and/or community engagement activities.\nLandscaping design could increase visual amenity. \n\n","Project team & supply chain / sub-contractors"]
[null,{"$f":"'Aspect Register - PRINT'!$C$16","v":3},"l",{"$f":"'Aspect Register - PRINT'!$D$16","v":"Site Office, Welfare & Compound Operation"},{"$f":"'Aspect Register - PRINT'!$L$12","v":"Waste"},"Normal","Increased landfill or energy required to recycle. \nLittering / fly-tipping.\nBreach of legislation due to use of unauthorised carriers and/or disposal sites.",{"$f":"'Aspect Register - PRINT'!L16","v":0},{"$f":"IF(H50=0,4,IF(H50=\"N/A\",4,IF(H50=\"Low\",3,IF(H50=\"Med\",2,IF(H50=\"Sig\",1)))))","v":4},"Ensure liquid wastes are captured in septic tank or discharged straight to foul sewer.\nApply the waste hierarchy e.g. Eliminate - Reduce - Reuse - Recycle.\nEnsure correct segregation and storage of waste streams.\nUse of Persimmon approved waste contractors.\nObtain Duty Of Care documentation for all waste contractors.\nRetain waste transfer notes (WTN) for min. 2 years or min. 3 years for hazardous consignment note.\nPrevent wind blown waste i.e. skip covers, haulage lorries covered etc.\nCommunicate site requirements at site induction.\n","Setup waste segregation in office and separate cardboard / paper, plastics.","Project team & supply chain / sub-contractors."]
[null,{"$f":"'Aspect Register - PRINT'!$C$17","v":4},"k",{"$f":"'Aspect Register - PRINT'!$D$17","v":"Use / Storage of Fuel & Hazardous Materials"},{"$f":"'Aspect Register - PRINT'!$K$12","v":"Air Pollution"},"Normal","Vapour and/or fumes released causing harm and/or nuisance to local community.",{"$f":"'Aspect Register - PRINT'!K17","v":0},{"$f":"IF(H51=0,4,IF(H51=\"N/A\",4,IF(H51=\"Low\",3,IF(H51=\"Med\",2,IF(H51=\"Sig\",1)))))","v":4},"Ensure all hazardous materials are stored as per manufacturers recommendations and Safety Data Sheet.\nContainers closed when not in active use.\n",null,"Project team & supply chain / sub-contractors. "]
[null,{"$f":"'Aspect Register - PRINT'!$C$17","v":4},"g",{"$f":"'Aspect Register - PRINT'!$D$17","v":"Use / Storage of Fuel & Hazardous Materials"},{"$f":"'Aspect Register - PRINT'!$G$12","v":"Dust or Odour"},"Normal","Disturb or harm to neighbouring communities.\nDisturb or harm to local fauna.",{"$f":"'Aspect Register - PRINT'!G17","v":0},{"$f":"IF(H52=0,4,IF(H52=\"N/A\",4,IF(H52=\"Low\",3,IF(H52=\"Med\",2,IF(H52=\"Sig\",1)))))","v":4},"Obtain COSHH data sheet to understand storage requirements.\nHazardous materials & fuel stored in suitable COSHH containment.\nConsider location of storage away from sensitive areas.\nSpill Response Plan to be in place and implemented in the event of a spill.\nSuitable drip containment (e.g. EnviroPad).\n","Use of Green HVO D+ which is odourless.","Project team & supply chain / sub-contractors"]
[null,{"$f":"'Aspect Register - PRINT'!$C$17","v":4},"p",{"$f":"'Aspect Register - PRINT'!$D$17","v":"Use / Storage of Fuel & Hazardous Materials"},{"$f":"'Aspect Register - PRINT'!$P$12","v":"Ecology & Biodiversity"},"Normal","Disturbance or harm to local flora & fauna.\nDamage or destruction of habitat.",{"$f":"'Aspect Register - PRINT'!P17","v":0},{"$f":"IF(H53=0,4,IF(H53=\"N/A\",4,IF(H53=\"Low\",3,IF(H53=\"Med\",2,IF(H53=\"Sig\",1)))))","v":4},"Hazardous substances stored as per Safety Data Sheet and COSHH regulations.\nHazardous substances stored >10m from drains or sensitive areas.\nEcological and Arboricultural surveys reviewed and findings communicated on Site Constraints Plan and at site induction.\nSensitive areas protected from unauthorised access.\nProtective measures regularly monitored and maintained, e.g. Newt fencing / Root Protection Zones.\n",null,"Project team & supply chain / sub-contractors"]
[null,{"$f":"'Aspect Register - PRINT'!$C$17","v":4},"j",{"$f":"'Aspect Register - PRINT'!$D$17","v":"Use / Storage of Fuel & Hazardous Materials"},{"$f":"'Aspect Register - PRINT'!$J$12","v":"Ground & Surface Water"},"Normal","Pollution of controlled waters.\n",{"$f":"'Aspect Register - PRINT'!J17","v":0},{"$f":"IF(H54=0,4,IF(H54=\"N/A\",4,IF(H54=\"Low\",3,IF(H54=\"Med\",2,IF(H54=\"Sig\",1)))))","v":4},"Hazardous substances stored as per Safety Data Sheet and COSHH regulations.\nHazardous substances stored >10m from drains or sensitive areas.\nFuels / Oils to be stored in secondary containment.\nFurther bunding to be installed where stored on permeable ground.\nProvide spill kits where necessary and EnviroPad for refuelling.\nSmall plant and machinery to be placed on Enviropad or similar.\nIdentify watercourses, ditches, drains within, or close to, the site boundary on the Site Drainage Plan. \nCommunicate risks to supply chain.\nCarry out spill training to site team.\n",null,"Project team & supply chain / sub-contractors. "]
[null,{"$f":"'Aspect Register - PRINT'!$C$17","v":4},"n",{"$f":"'Aspect Register - PRINT'!$D$17","v":"Use / Storage of Fuel & Hazardous Materials"},{"$f":"'Aspect Register - PRINT'!$N$12","v":"Land Contamination"},null,"Pollution of land and nearby watercourses.\nRisk to human health.",{"$f":"'Aspect Register - PRINT'!N17","v":0},{"$f":"IF(H55=0,4,IF(H55=\"N/A\",4,IF(H55=\"Low\",3,IF(H55=\"Med\",2,IF(H55=\"Sig\",1)))))","v":4},"Hazardous substances stored as per Safety Data Sheet and COSHH regulations.\nHazardous substances stored >10m from drains or sensitive areas.\nFuels / Oils to be stored in secondary containment.\nFurther bunding to be installed where stored on permeable ground.\nProvide spill kits where necessary and EnviroPad for refuelling.\nSmall plant and machinery to be placed on Enviropad or similar.\nIdentify watercourses, ditches, drains within, or close to, the site boundary on the Site Drainage Plan. \nCommunicate risks to supply chain.\nCarry out spill training to site team.\n",null,"Project team & supply chain / sub-contractors. "]
[null,{"$f":"'Aspect Register - PRINT'!$C$17","v":4},"q",{"$f":"'Aspect Register - PRINT'!$D$17","v":"Use / Storage of Fuel & Hazardous Materials"},"Other - Please complete","Normal","Please complete",{"$f":"'Aspect Register - PRINT'!Q17","v":0},{"$f":"IF(H56=0,4,IF(H56=\"N/A\",4,IF(H56=\"Low\",3,IF(H56=\"Med\",2,IF(H56=\"Sig\",1)))))","v":4},"Please complete","Please complete","Please complete"]
[null,{"$f":"'Aspect Register - PRINT'!$C$17","v":4},"o",{"$f":"'Aspect Register - PRINT'!$D$17","v":"Use / Storage of Fuel & Hazardous Materials"},{"$f":"'Aspect Register - PRINT'!$O$12","v":"Resource Use \ne.g. Materials, Energy or Water"},null,"Emission of air pollutants from fossil fuel combustion\nIncreased GHG emissions contributing to climate change\nConsumption of natural resources",{"$f":"'Aspect Register - PRINT'!O17","v":0},{"$f":"IF(H57=0,4,IF(H57=\"N/A\",4,IF(H57=\"Low\",3,IF(H57=\"Med\",2,IF(H57=\"Sig\",1)))))","v":4},"Procure local materials where possible.\nStore materials so as to prevent damage, vehicle impact and provide cover where susceptible to water damage.\n",null,"Project team & supply chain / sub-contractors. "]
[null,{"$f":"'Aspect Register - PRINT'!$C$17","v":4},"l",{"$f":"'Aspect Register - PRINT'!$D$17","v":"Use / Storage of Fuel & Hazardous Materials"},{"$f":"'Aspect Register - PRINT'!$L$12","v":"Waste"},null,"Increased landfill or energy required to recycle. \nLittering / fly-tipping.\nBreach of legislation due to use of unauthorised carriers and/or disposal sites.",{"$f":"'Aspect Register - PRINT'!L17","v":0},{"$f":"IF(H58=0,4,IF(H58=\"N/A\",4,IF(H58=\"Low\",3,IF(H58=\"Med\",2,IF(H58=\"Sig\",1)))))","v":4},"Provide waste station for hazardous waste streams.\nHazardous substances stored as per Safety Data Sheet and COSHH regulations.\nHazardous substances stored >10m from drains or sensitive areas.\nApply the waste hierarchy e.g. Eliminate - Reduce - Reuse - Recycle.\nEnsure correct segregation and storage of waste streams.\nUse of Persimmon approved waste contractors.\nObtain Duty Of Care documentation for all waste contractors.\nRetain waste transfer notes (WTN) for min. 2 years or min. 3 years for hazardous consignment note.\nPrevent wind blown waste i.e. skip covers, haulage lorries covered etc.\nCommunicate site requirements at site induction.\n",null,"Project team & supply chain / sub-contractors. "]
[null,{"$f":"'Aspect Register - PRINT'!$C$19","v":5},"q",{"$f":"'Aspect Register - PRINT'!$D$19","v":"Demolition Works"},"Other - Please complete","Normal","Please complete",{"$f":"'Aspect Register - PRINT'!Q19","v":0},{"$f":"IF(H59=0,4,IF(H59=\"N/A\",4,IF(H59=\"Low\",3,IF(H59=\"Med\",2,IF(H59=\"Sig\",1)))))","v":4},"Please complete","Please complete","Please complete"]
[null,{"$f":"'Aspect Register - PRINT'!$C$20","v":6},"m",{"$f":"'Aspect Register - PRINT'!$D$20","v":"Crushing & Screening of Inert Waste"},{"$f":"'Aspect Register - PRINT'!$M$12","v":"Cultural Heritage"},null,"Damage to listed/protected buildings or ancient monuments.\nDamage to artifacts of historical/archaeological interest.",{"$f":"'Aspect Register - PRINT'!M20","v":0},{"$f":"IF(H60=0,4,IF(H60=\"N/A\",4,IF(H60=\"Low\",3,IF(H60=\"Med\",2,IF(H60=\"Sig\",1)))))","v":4},"Conduct desktop survey and if necessary commission further investigation to understand the level of risk.\nLocation of plant away from sensitive areas.\nReport any findings to Historic England and Local Planning Authority. \nObtain relevant consent / licence from Historic England if required.\nIncorporation of approved methods into RAMS & briefed.\nCommunicate site requirements on Site Constraints Plan and at site induction.\n",null,"Project team & supply chain / sub-contractors"]
[null,{"$f":"'Aspect Register - PRINT'!$C$20","v":6},"j",{"$f":"'Aspect Register - PRINT'!$D$20","v":"Crushing & Screening of Inert Waste"},{"$f":"'Aspect Register - PRINT'!$J$12","v":"Ground & Surface Water"},"Normal","Pollution of controlled waters.\n",{"$f":"'Aspect Register - PRINT'!J20","v":0},{"$f":"IF(H61=0,4,IF(H61=\"N/A\",4,IF(H61=\"Low\",3,IF(H61=\"Med\",2,IF(H61=\"Sig\",1)))))","v":4},"Protection of drains to prevent silt ingress.\nPrevent run-off from leaving site.\nIdentify watercourses, ditches, drains within, or close to, the site boundary on the Site Drainage Plan. \nDo not store materials closer than 10m to drains.\nCommunicate risks to supply chain.\nCarry out spill training to site team.\n",null,"Project team & supply chain / sub-contractors. "]
[null,{"$f":"'Aspect Register - PRINT'!$C$20","v":6},"g",{"$f":"'Aspect Register - PRINT'!$D$20","v":"Crushing & Screening of Inert Waste"},{"$f":"'Aspect Register - PRINT'!$G$12","v":"Dust or Odour"},"Normal","Disturb or harm to neighbouring communities.\nDisturb or harm to local fauna.",{"$f":"'Aspect Register - PRINT'!G20","v":0},{"$f":"IF(H62=0,4,IF(H62=\"N/A\",4,IF(H62=\"Low\",3,IF(H62=\"Med\",2,IF(H62=\"Sig\",1)))))","v":4},"Obtain relevant Mobile Plant Permit & Deployment Notification.\nUse of dust suppression / dampen down activities.\nEquipment maintained in accordance with the manufacturers instructions.\nAdhere to any relevant planning conditions.\nCommunicate with local residents. \nIdentify nearby sensitive properties or receptors.\nLocate activity away from sensitive areas where possible.\nDust monitoring installed & data reviewed where applicable. \n",null,"Project team & supply chain / sub-contractors"]
[null,{"$f":"'Aspect Register - PRINT'!$C$20","v":6},"p",{"$f":"'Aspect Register - PRINT'!$D$20","v":"Crushing & Screening of Inert Waste"},{"$f":"'Aspect Register - PRINT'!$P$12","v":"Ecology & Biodiversity"},null,"Disturbance or harm to local flora & fauna.\nDamage or destruction of habitat.",{"$f":"'Aspect Register - PRINT'!P20","v":0},{"$f":"IF(H63=0,4,IF(H63=\"N/A\",4,IF(H63=\"Low\",3,IF(H63=\"Med\",2,IF(H63=\"Sig\",1)))))","v":4},"Obtain a European Protected (EPS) license if required.\nConditions of any license regularly communicated to site team and supply chain via specific Toolbox Talks\nWorks preceded by ecologist check and/or supervised by Ecological Clerk of Works if required.\nEcological surveys reviewed and findings communicated on Site Constraints Plan and at site induction.\nSensitive areas protected from unauthorised access.\nProtective measures regularly monitored and maintained, e.g. Newt fencing / Root Protection Zones.\n",null,"Project team & supply chain / sub-contractors."]
[null,{"$f":"'Aspect Register - PRINT'!$C$20","v":6},"n",{"$f":"'Aspect Register - PRINT'!$D$20","v":"Crushing & Screening of Inert Waste"},{"$f":"'Aspect Register - PRINT'!$N$12","v":"Land Contamination"},null,"Pollution of land and nearby watercourses.\nRisk to human health.",{"$f":"'Aspect Register - PRINT'!N20","v":0},{"$f":"IF(H64=0,4,IF(H64=\"N/A\",4,IF(H64=\"Low\",3,IF(H64=\"Med\",2,IF(H64=\"Sig\",1)))))","v":4},"Obtain both Gradient and Chemical Testing certificates for crushed aggregate.\nStockpiles to be kept free of vehicle, plant, equipment, litter, spillages etc.\nComply with local planning authority conditions.\nEnsure RAMS are in placed for activity.\nSegregate stockpiles.\nProvide COSHH, fuels etc with appropriate containment e.g. bunded, double-skinned tanks, plant nappy / enviropad for small items of plant.\nInstall dust/odour suppression where required.\nDo not store materials closer than 10m to drains.\nCarry out a Verification testing and reporting to confirm that the remediation/risk management design has been implemented.\nCommunicate risks to the workforce.\n",null,"Project team & supply chain / sub-contractors."]
[null,{"$f":"'Aspect Register - PRINT'!$C$20","v":6},"f",{"$f":"'Aspect Register - PRINT'!$D$20","v":"Crushing & Screening of Inert Waste"},{"$f":"'Aspect Register - PRINT'!$F$12","v":"Noise,  Light or Vibration"},"Normal","Disturbance to neighbouring communities.\nDisturbance of flora & fauna.",{"$f":"'Aspect Register - PRINT'!F20","v":0},{"$f":"IF(H65=0,4,IF(H65=\"N/A\",4,IF(H65=\"Low\",3,IF(H65=\"Med\",2,IF(H65=\"Sig\",1)))))","v":4},"Obtain relevant Mobile Plant Permit & Deployment Notification.\nCommunicate with local residents. \nIdentify nearby sensitive properties or receptors.\nSite machinery / plant away from sensitive areas.\nNoise/Vibration monitoring installed & data reviewed where applicable.\nPlant and vehicle maintenance in accordance with the manufacturers instructions.\nAdhere to any relevant planning conditions.\nConsider setting up acoustic sound barriers when reasonably practicable.\nConsider the requirement for Section 61 Notice application and comply.\n",null,"Project team & supply chain / sub-contractors."]
[null,{"$f":"'Aspect Register - PRINT'!$C$20","v":6},"q",{"$f":"'Aspect Register - PRINT'!$D$20","v":"Crushing & Screening of Inert Waste"},"Other - Please complete","Normal","Please complete",{"$f":"'Aspect Register - PRINT'!Q20","v":0},{"$f":"IF(H66=0,4,IF(H66=\"N/A\",4,IF(H66=\"Low\",3,IF(H66=\"Med\",2,IF(H66=\"Sig\",1)))))","v":4},"Please complete","Please complete","Please complete"]
[null,{"$f":"'Aspect Register - PRINT'!$C$20","v":6},"o",{"$f":"'Aspect Register - PRINT'!$D$20","v":"Crushing & Screening of Inert Waste"},{"$f":"'Aspect Register - PRINT'!$O$12","v":"Resource Use \ne.g. Materials, Energy or Water"},"Normal","Emission of air pollutants from fossil fuel combustion\nIncreased GHG emissions contributing to climate change\nConsumption of natural resources",{"$f":"'Aspect Register - PRINT'!O20","v":0},{"$f":"IF(H67=0,4,IF(H67=\"N/A\",4,IF(H67=\"Low\",3,IF(H67=\"Med\",2,IF(H67=\"Sig\",1)))))","v":4},"Crush in accordance with Aggregates Quality Protocol.\nObtain Part B Permit from local authority (LA) for the mobile crusher.\nEnsure equipment is well maintained and suitable for the task.\nCarry out periodic checks for water leaks.\n","Crush site-won waste for use as aggregates on site of production.","Project team & supply chain / sub-contractors."]
[null,{"$f":"'Aspect Register - PRINT'!$C$20","v":6},"i",{"$f":"'Aspect Register - PRINT'!$D$20","v":"Crushing & Screening of Inert Waste"},{"$f":"'Aspect Register - PRINT'!$I$12","v":"Visual Impact"},"Normal","Disturb neighbouring communities.",{"$f":"'Aspect Register - PRINT'!I20","v":0},{"$f":"IF(H68=0,4,IF(H68=\"N/A\",4,IF(H68=\"Low\",3,IF(H68=\"Med\",2,IF(H68=\"Sig\",1)))))","v":4},"Appropriate housekeeping of materials and waste.\nScraping & sweeping of roads & access routes as necessary.\nEquipment maintained in accordance with the manufacturers instructions.\nAdhere to any relevant planning conditions.\nCommunicate with local residents. \nIdentify nearby sensitive properties or receptors.\nLocate activity away from sensitive areas where possible.\n",null,"Project team & supply chain / sub-contractors"]
[null,{"$f":"'Aspect Register - PRINT'!$C$20","v":6},"l",{"$f":"'Aspect Register - PRINT'!$D$20","v":"Crushing & Screening of Inert Waste"},{"$f":"'Aspect Register - PRINT'!$L$12","v":"Waste"},"Normal","Increased landfill or energy required to recycle. \nLittering / fly-tipping.\nBreach of legislation due to use of unauthorised carriers and/or disposal sites.",{"$f":"'Aspect Register - PRINT'!L20","v":0},{"$f":"IF(H69=0,4,IF(H69=\"N/A\",4,IF(H69=\"Low\",3,IF(H69=\"Med\",2,IF(H69=\"Sig\",1)))))","v":4},"Crush in accordance with Aggregates Quality Protocol.\nObtain Part B Permit from local authority (LA) for the mobile crusher.\nNotify LA before crushing commences.\nObtain both Gradient and Chemical Testing certificates for crushed aggregate.\nIncorporation of approved methods into RAMS & briefed.\nObtain U1 Exemption (<5000T) or Cl:aire MMP (>5000T) if not crushed in accordance with Aggregates Quality Protocol.\nAnalysis of waste materials may be required for health risks & waste acceptance criteria (WM3).\nApply the waste hierarchy e.g. Eliminate - Reduce - Reuse - Recycle.\nEnsure correct segregation and storage of waste streams.\nUse of Persimmon approved waste contractors.\nObtain Duty Of Care documentation for all waste contractors.\nRetain waste transfer notes (WTN) for min. 2 years or min. 3 years for hazardous consignment note.\nPrevent wind blown waste i.e. skip covers, haulage lorries covered etc.\nCommunicate site requirements at site induction.\n",null,"Project team & supply chain / sub-contractors."]
[null,{"$f":"'Aspect Register - PRINT'!$C$21","v":7},"m",{"$f":"'Aspect Register - PRINT'!$D$21","v":"Roadworks (Public Highway)"},{"$f":"'Aspect Register - PRINT'!$M$12","v":"Cultural Heritage"},"Normal","Damage to listed/protected buildings or ancient monuments.\nDamage to artifacts of historical/archaeological interest.",{"$f":"'Aspect Register - PRINT'!M21","v":0},{"$f":"IF(H70=0,4,IF(H70=\"N/A\",4,IF(H70=\"Low\",3,IF(H70=\"Med\",2,IF(H70=\"Sig\",1)))))","v":4},"Conduct desktop survey and if necessary commission further investigation to understand the level of risk.\nMaintain watching brief during groundwork phases where required.\nIf artifacts of potential value are found, works to be stopped and an archaeological consultant appointed.\nReport any findings to Historic England and Local Planning Authority. \nObtain relevant consent / licence from Historic England if required.\nIncorporation of approved methods into RAMS & briefed.\nCommunicate site requirements on Site Constraints Plan and at site induction.\n",null,"Project team & supply chain / sub-contractors"]
[null,{"$f":"'Aspect Register - PRINT'!$C$21","v":7},"j",{"$f":"'Aspect Register - PRINT'!$D$21","v":"Roadworks (Public Highway)"},{"$f":"'Aspect Register - PRINT'!$J$12","v":"Ground & Surface Water"},"Normal","Pollution of controlled waters.\n",{"$f":"'Aspect Register - PRINT'!J21","v":0},{"$f":"IF(H71=0,4,IF(H71=\"N/A\",4,IF(H71=\"Low\",3,IF(H71=\"Med\",2,IF(H71=\"Sig\",1)))))","v":4},"Protection of drains to prevent silt ingress.\nPrevent run-off from leaving site.\nIdentify watercourses, ditches, drains within, or close to, the site boundary on the Site Drainage Plan. \nDo not store materials closer than 10m to drains.\nCommunicate risks to supply chain.\nCarry out spill training to site team.\n",null,"Project team & supply chain / sub-contractors. "]
[null,{"$f":"'Aspect Register - PRINT'!$C$21","v":7},"g",{"$f":"'Aspect Register - PRINT'!$D$21","v":"Roadworks (Public Highway)"},{"$f":"'Aspect Register - PRINT'!$G$12","v":"Dust or Odour"},"Normal","Disturb or harm to neighbouring communities.\nDisturb or harm to local fauna.",{"$f":"'Aspect Register - PRINT'!G21","v":0},{"$f":"IF(H72=0,4,IF(H72=\"N/A\",4,IF(H72=\"Low\",3,IF(H72=\"Med\",2,IF(H72=\"Sig\",1)))))","v":4},"Use of dust suppression / dampen down activities.\nEquipment maintained in accordance with the manufacturers instructions.\nAdhere to any relevant planning conditions.\nCommunicate with local residents. \nIdentify nearby sensitive properties or receptors.\nLocate activity away from sensitive areas where possible.\nDust monitoring installed & data reviewed where applicable.\nScraping & sweeping of roads as necessary.\nVehicles adhering to the Traffic Management Plan and site speed limit.\nConsider use of wheel wash. \n",null,"Project team & supply chain / sub-contractors"]
[null,{"$f":"'Aspect Register - PRINT'!$C$21","v":7},"p",{"$f":"'Aspect Register - PRINT'!$D$21","v":"Roadworks (Public Highway)"},{"$f":"'Aspect Register - PRINT'!$P$12","v":"Ecology & Biodiversity"},"Normal","Disturbance or harm to local flora & fauna.\nDamage or destruction of habitat.",{"$f":"'Aspect Register - PRINT'!P21","v":0},{"$f":"IF(H73=0,4,IF(H73=\"N/A\",4,IF(H73=\"Low\",3,IF(H73=\"Med\",2,IF(H73=\"Sig\",1)))))","v":4},"Ecological and Arboricultural surveys reviewed and findings communicated on Site Constraints Plan and at site induction.\nSensitive areas protected from unauthorised access.\nProtective measures regularly monitored and maintained, e.g. Newt fencing / Root Protection Zones.\nEnsure speed limits are adhered to on site to avoid wildlife injuries and fatalities on the road\n",null,"Project team & supply chain / sub-contractors"]
[null,{"$f":"'Aspect Register - PRINT'!$C$21","v":7},"h",{"$f":"'Aspect Register - PRINT'!$D$21","v":"Roadworks (Public Highway)"},{"$f":"'Aspect Register - PRINT'!$H$12","v":"Highway Traffic"},"Normal","Congestion on local roads causing nuisance.\n",{"$f":"'Aspect Register - PRINT'!H21","v":0},{"$f":"IF(H74=0,4,IF(H74=\"N/A\",4,IF(H74=\"Low\",3,IF(H74=\"Med\",2,IF(H74=\"Sig\",1)))))","v":4},"Adhere to any planning restrictions.\nTraffic management plan to avoid use of plant on public roads where possible.\nConsider traffic speed limits on approach to site.\nVehicles adhering to the Traffic Management Plan and site speed limit.\nInstall protection measures for property, street furniture, soft banks etc.\nTraffic marshalling used where required.\nCommunicate with local residents.\n","Section 278 works could improve local infrastructure.","Project team & supply chain / sub-contractors"]
[null,{"$f":"'Aspect Register - PRINT'!$C$21","v":7},"n",{"$f":"'Aspect Register - PRINT'!$D$21","v":"Roadworks (Public Highway)"},{"$f":"'Aspect Register - PRINT'!$N$12","v":"Land Contamination"},"Normal","Pollution of land and nearby watercourses.\nRisk to human health.",{"$f":"'Aspect Register - PRINT'!N21","v":0},{"$f":"IF(H75=0,4,IF(H75=\"N/A\",4,IF(H75=\"Low\",3,IF(H75=\"Med\",2,IF(H75=\"Sig\",1)))))","v":4},"Carry out a Site Investigation to identify any potential existing contamination.\nAnalyse excavated material for health risks and waste acceptance criteria.\nIf the contaminated material is not suitable for use remove it from site as Hazardous Waste.\nPlan your site so that you can separate contaminated materials from non-contaminated materials.\nIf any unexpected contamination is found during works, stop work until the materials have been adequately identified.\nComply with local planning authority conditions.\nEnsure RAMS are in placed for activity.\nProvide COSHH, fuels etc with appropriate containment e.g. bunded, double-skinned tanks, plant nappy / enviropad for small items of plant.\nDo not store materials closer than 10m to drains.\nCommunicate risks to the workforce.\n","Opportunity to locally remediate land and improve quality. ","Project team & supply chain / sub-contractors"]
[null,{"$f":"'Aspect Register - PRINT'!$C$21","v":7},"f",{"$f":"'Aspect Register - PRINT'!$D$21","v":"Roadworks (Public Highway)"},{"$f":"'Aspect Register - PRINT'!$F$12","v":"Noise,  Light or Vibration"},"Normal","Disturbance to neighbouring communities.\nDisturbance of flora & fauna.",{"$f":"'Aspect Register - PRINT'!F21","v":0},{"$f":"IF(H76=0,4,IF(H76=\"N/A\",4,IF(H76=\"Low\",3,IF(H76=\"Med\",2,IF(H76=\"Sig\",1)))))","v":4},"Communicate with local residents. \nIdentify nearby sensitive properties or receptors.\nSite machinery / plant away from sensitive areas.\nNoise/Vibration monitoring installed & data reviewed where applicable.\nPlant and vehicle maintenance in accordance with the manufacturers instructions.\nAdhere to any relevant planning conditions.\nConsider setting up acoustic sound barriers when reasonably practicable.\nConsider the requirement for Section 61 Notice application and comply.\n","Use of battery powered tools over petrol/diesel.\nUse of electric plant / vehicles.","Project team & supply chain / sub-contractors."]
[null,{"$f":"'Aspect Register - PRINT'!$C$21","v":7},"q",{"$f":"'Aspect Register - PRINT'!$D$21","v":"Roadworks (Public Highway)"},"Other - Please complete","Normal","Please complete",{"$f":"'Aspect Register - PRINT'!Q21","v":0},{"$f":"IF(H77=0,4,IF(H77=\"N/A\",4,IF(H77=\"Low\",3,IF(H77=\"Med\",2,IF(H77=\"Sig\",1)))))","v":4},"Please complete","Please complete","Please complete"]
[null,{"$f":"'Aspect Register - PRINT'!$C$21","v":7},"i",{"$f":"'Aspect Register - PRINT'!$D$21","v":"Roadworks (Public Highway)"},{"$f":"'Aspect Register - PRINT'!$I$12","v":"Visual Impact"},"Normal","Disturb neighbouring communities.",{"$f":"'Aspect Register - PRINT'!I21","v":0},{"$f":"IF(H78=0,4,IF(H78=\"N/A\",4,IF(H78=\"Low\",3,IF(H78=\"Med\",2,IF(H78=\"Sig\",1)))))","v":4},"Scraping & sweeping of roads & access routes as necessary.\nEquipment maintained in accordance with the manufacturers instructions.\nAdhere to any relevant planning conditions.\nCommunicate with local residents. \nIdentify nearby sensitive properties or receptors.\nLocate activity away from sensitive areas where possible.\n",null,"Project team & supply chain / sub-contractors"]
[null,{"$f":"'Aspect Register - PRINT'!$C$21","v":7},"l",{"$f":"'Aspect Register - PRINT'!$D$21","v":"Roadworks (Public Highway)"},{"$f":"'Aspect Register - PRINT'!$L$12","v":"Waste"},null,"Increased landfill or energy required to recycle. \nLittering / fly-tipping.\nBreach of legislation due to use of unauthorised carriers and/or disposal sites.",{"$f":"'Aspect Register - PRINT'!L21","v":0},{"$f":"IF(H79=0,4,IF(H79=\"N/A\",4,IF(H79=\"Low\",3,IF(H79=\"Med\",2,IF(H79=\"Sig\",1)))))","v":4},"Carry out cut & fill exercise to maximise reuse of site arisings.\nObtain U1 Exemption (<1000T) or Cl:aire MMP (>1000T) for reuse of made ground.\nRecord all waste information on Site Waste Management Plan.\nAnalysis of waste materials may be required for health risks, Waste Classification (WM3). \nWaste Acceptance Criteria (WAC) may be required if destined for landfill.\nApply the waste hierarchy e.g. Eliminate - Reduce - Reuse - Recycle.\nEnsure correct segregation and storage of waste streams.\nUse of Persimmon approved waste contractors.\nObtain Duty Of Care documentation for all waste contractors.\nRetain waste transfer notes (WTN) for min. 2 years or min. 3 years for hazardous consignment note.\nPrevent wind blown waste i.e. skip covers, haulage lorries covered etc.\nCommunicate site requirements at site induction.\n",null,"Project team & supply chain / sub-contractors. "]
[null,{"$f":"'Aspect Register - PRINT'!$C$22","v":8},"m",{"$f":"'Aspect Register - PRINT'!$D$22","v":"Vegetation Clearance & Stripping"},{"$f":"'Aspect Register - PRINT'!$M$12","v":"Cultural Heritage"},"Normal","Damage to listed/protected buildings or ancient monuments.\nDamage to artifacts of historical/archaeological interest.",{"$f":"'Aspect Register - PRINT'!M22","v":0},{"$f":"IF(H80=0,4,IF(H80=\"N/A\",4,IF(H80=\"Low\",3,IF(H80=\"Med\",2,IF(H80=\"Sig\",1)))))","v":4},"Conduct desktop survey and if necessary commission further investigation to understand the level of risk.\nMaintain watching brief during groundwork phases where required.\nIf artifacts of potential value are found, works to be stopped and an archaeological consultant appointed.\nReport any findings to Historic England and Local Planning Authority. \nObtain relevant consent / licence from Historic England if required.\nIncorporation of approved methods into RAMS & briefed.\nCommunicate site requirements on Site Constraints Plan and at site induction.\n",null,"Project team & supply chain / sub-contractors"]
[null,{"$f":"'Aspect Register - PRINT'!$C$22","v":8},"j",{"$f":"'Aspect Register - PRINT'!$D$22","v":"Vegetation Clearance & Stripping"},{"$f":"'Aspect Register - PRINT'!$J$12","v":"Ground & Surface Water"},"Normal","Pollution of controlled waters.\n",{"$f":"'Aspect Register - PRINT'!J22","v":0},{"$f":"IF(H81=0,4,IF(H81=\"N/A\",4,IF(H81=\"Low\",3,IF(H81=\"Med\",2,IF(H81=\"Sig\",1)))))","v":4},"Vegetation stripped progressively, when needed, to reduce run off and avoid unnecessarily stripping topsoil.\nProtection of drains to prevent silt ingress.\nPrevent run-off from leaving site (e.g. silt fencing)\nIdentify watercourses, ditches, drains within, or close to, the site boundary on the Site Drainage Plan. \nDo not store materials closer than 10m to drains.\nCommunicate risks to supply chain.\nCarry out spill training to site team.\n",null,"Project team & supply chain / sub-contractors. "]
[null,{"$f":"'Aspect Register - PRINT'!$C$22","v":8},"g",{"$f":"'Aspect Register - PRINT'!$D$22","v":"Vegetation Clearance & Stripping"},{"$f":"'Aspect Register - PRINT'!$G$12","v":"Dust or Odour"},"Normal","Disturb or harm to neighbouring communities.\nDisturb or harm to local fauna.",{"$f":"'Aspect Register - PRINT'!G22","v":0},{"$f":"IF(H82=0,4,IF(H82=\"N/A\",4,IF(H82=\"Low\",3,IF(H82=\"Med\",2,IF(H82=\"Sig\",1)))))","v":4},"Progressive stripping of land to reduce exposure of soils.\nCover or seed material stockpiles where necessary.\nUse of dust suppression / dampen down activities.\nEquipment maintained in accordance with the manufacturers instructions.\nAdhere to any relevant planning conditions.\nCommunicate with local residents. \nIdentify nearby sensitive properties or receptors.\nLocate activity away from sensitive areas where possible.\nDust monitoring installed & data reviewed where applicable.\nScraping & sweeping of roads as necessary.\nVehicles adhering to the Traffic Management Plan and site speed limit.\nConsider use of wheel wash. \n",null,"Project team & supply chain / sub-contractors"]
[null,{"$f":"'Aspect Register - PRINT'!$C$22","v":8},"p",{"$f":"'Aspect Register - PRINT'!$D$22","v":"Vegetation Clearance & Stripping"},{"$f":"'Aspect Register - PRINT'!$P$12","v":"Ecology & Biodiversity"},"Normal","Disturbance or harm to local flora & fauna.\nDamage or destruction of habitat.",{"$f":"'Aspect Register - PRINT'!P22","v":0},{"$f":"IF(H83=0,4,IF(H83=\"N/A\",4,IF(H83=\"Low\",3,IF(H83=\"Med\",2,IF(H83=\"Sig\",1)))))","v":4},"Ecological and Arboricultural surveys reviewed and findings communicated on Site Constraints Plan and at site induction.\nSensitive areas protected from unauthorised access.\nClearance to be preceded by a check for nesting birds by an ecologist in nesting season (Mar-Sep).\nRisks during nesting season communicated site team and supply chain vis specific Toolbox Talks.\nProtective measures regularly monitored and maintained, e.g. Newt fencing / Root Protection Zones.\nAny TPO and/or trees on site that are to be retained will need to be protected with fencing in accordance with the Tree Protection Plan and BS5837.\nNo materials to be stored within the protection zone nor access granted, and the use of heavy plant and equipment is to be reviewed in line with any recommendations made regarding the root protection zone.\n","New habitat creation and increase on biodiversity net-gain.","Project team & supply chain / sub-contractors"]
[null,{"$f":"'Aspect Register - PRINT'!$C$22","v":8},"n",{"$f":"'Aspect Register - PRINT'!$D$22","v":"Vegetation Clearance & Stripping"},{"$f":"'Aspect Register - PRINT'!$N$12","v":"Land Contamination"},"Normal","Pollution of land and nearby watercourses.\nRisk to human health.",{"$f":"'Aspect Register - PRINT'!N22","v":0},{"$f":"IF(H84=0,4,IF(H84=\"N/A\",4,IF(H84=\"Low\",3,IF(H84=\"Med\",2,IF(H84=\"Sig\",1)))))","v":4},"Carry out a Site Investigation to identify any potential existing contamination.\nAnalyse soil for health risks and waste acceptance criteria.\nRemediate any contaminated soil to allow for reuse.\nIf the contaminated soil is not suitable for use remove it from site as Hazardous Waste.\nPlan your site so that you can separate contaminated materials from non-contaminated materials.\nIf any unexpected contamination is found during works, stop work until the materials have been adequately identified.\nStore hedgerow and watercourse topsoil separate to ensure reinstatement in hedgerow and watercourses where possible.\nTopsoil kept free of vehicle, plant, equipment, litter, spillages etc.\nEnsure any presence of invasive weeds are treated or removed from site.\nComply with local planning authority conditions.\nEnsure RAMS are in placed for activity.\nSeparate stockpile from subsoil.\nProvide COSHH, fuels etc with appropriate containment e.g. bunded, double-skinned tanks, plant nappy / enviropad for small items of plant.\nDo not store materials closer than 10m to drains.\nCommunicate risks to the workforce.\n","Opportunity to locally remediate land and improve quality. ","Project team & supply chain / sub-contractors"]
[null,{"$f":"'Aspect Register - PRINT'!$C$22","v":8},"f",{"$f":"'Aspect Register - PRINT'!$D$22","v":"Vegetation Clearance & Stripping"},{"$f":"'Aspect Register - PRINT'!$F$12","v":"Noise,  Light or Vibration"},null,"Disturbance to neighbouring communities.\nDisturbance of flora & fauna.",{"$f":"'Aspect Register - PRINT'!F22","v":0},{"$f":"IF(H85=0,4,IF(H85=\"N/A\",4,IF(H85=\"Low\",3,IF(H85=\"Med\",2,IF(H85=\"Sig\",1)))))","v":4},"Plant and vehicle maintenance in accordance with the manufacturers instructions.\nAdhere to site speed limits.\nSwitch off engines when plant not in use.\nMaintenance of access tracks / roads. \nCommunicate with local residents.\nAdhere to any relevant planning conditions. \nIdentify nearby sensitive properties or receptors.\nSite machinery / plant away from sensitive areas.\nNoise/Vibration monitoring installed & data reviewed where applicable.\nConsider the requirement for Section 61 Notice application and comply.\n",null,"Project team & supply chain / sub-contractors"]
[null,{"$f":"'Aspect Register - PRINT'!$C$22","v":8},"q",{"$f":"'Aspect Register - PRINT'!$D$22","v":"Vegetation Clearance & Stripping"},"Other - Please complete","Normal","Please complete",{"$f":"'Aspect Register - PRINT'!Q22","v":0},{"$f":"IF(H86=0,4,IF(H86=\"N/A\",4,IF(H86=\"Low\",3,IF(H86=\"Med\",2,IF(H86=\"Sig\",1)))))","v":4},"Please complete","Please complete","Please complete"]
[null,{"$f":"'Aspect Register - PRINT'!$C$22","v":8},"o",{"$f":"'Aspect Register - PRINT'!$D$22","v":"Vegetation Clearance & Stripping"},{"$f":"'Aspect Register - PRINT'!$O$12","v":"Resource Use \ne.g. Materials, Energy or Water"},null,"Emission of air pollutants from fossil fuel combustion\nIncreased GHG emissions contributing to climate change",{"$f":"'Aspect Register - PRINT'!O22","v":0},{"$f":"IF(H87=0,4,IF(H87=\"N/A\",4,IF(H87=\"Low\",3,IF(H87=\"Med\",2,IF(H87=\"Sig\",1)))))","v":4},"Plant and vehicle maintenance in accordance with the manufacturers instructions.\nChoose the right machine for the task – avoid inefficient oversized machines.\nSwitch off engines when plant not in use.\nPrioritise battery powered / electric equipment where possible.\nConsider use of (GreenD+) HVO fuel as replacement for diesel.\n",null,"Project team & supply chain / sub-contractors"]
[null,{"$f":"'Aspect Register - PRINT'!$C$22","v":8},"i",{"$f":"'Aspect Register - PRINT'!$D$22","v":"Vegetation Clearance & Stripping"},{"$f":"'Aspect Register - PRINT'!$I$12","v":"Visual Impact"},"Normal","Disturb neighbouring communities.\n",{"$f":"'Aspect Register - PRINT'!I22","v":0},{"$f":"IF(H88=0,4,IF(H88=\"N/A\",4,IF(H88=\"Low\",3,IF(H88=\"Med\",2,IF(H88=\"Sig\",1)))))","v":4},"Comply approved designs and ecological and arboricultural surveys.\nAdhere to any relevant planning conditions.\nCommunicate with local residents. \nIdentify nearby sensitive properties or receptors.\nLocate activity away from sensitive areas where possible.\n",null,"Project team & supply chain / sub-contractors"]
[null,{"$f":"'Aspect Register - PRINT'!$C$22","v":8},"l",{"$f":"'Aspect Register - PRINT'!$D$22","v":"Vegetation Clearance & Stripping"},{"$f":"'Aspect Register - PRINT'!$L$12","v":"Waste"},"Normal","Increased landfill or energy required to recycle. \nLittering / fly-tipping.\nBreach of legislation due to use of unauthorised carriers and/or disposal sites.",{"$f":"'Aspect Register - PRINT'!L22","v":0},{"$f":"IF(H89=0,4,IF(H89=\"N/A\",4,IF(H89=\"Low\",3,IF(H89=\"Med\",2,IF(H89=\"Sig\",1)))))","v":4},"Apply the waste hierarchy e.g. Eliminate - Reduce - Reuse - Recycle.\nEnsure correct segregation and storage of waste streams.\nUse of Persimmon approved waste contractors.\nObtain Duty Of Care documentation for all waste contractors.\nRetain waste transfer notes (WTN) for min. 2 years or min. 3 years for hazardous consignment note.\nPrevent wind blown waste i.e. skip covers, haulage lorries covered etc.\nCommunicate site requirements at site induction.","Mulching site-won material and using in final landscaping scheme.","Project team & supply chain / sub-contractors."]
[null,{"$f":"'Aspect Register - PRINT'!$C$24","v":9},"o",{"$f":"'Aspect Register - PRINT'!$D$24","v":"Earthworks & Excavations"},{"$f":"'Aspect Register - PRINT'!$O$12","v":"Resource Use \ne.g. Materials, Energy or Water"},null,"Emission of air pollutants from fossil fuel combustion\nIncreased GHG emissions contributing to climate change",{"$f":"'Aspect Register - PRINT'!O24","v":0},{"$f":"IF(H90=0,4,IF(H90=\"N/A\",4,IF(H90=\"Low\",3,IF(H90=\"Med\",2,IF(H90=\"Sig\",1)))))","v":4},"Plant and vehicle maintenance in accordance with the manufacturers instructions. \nChoose the right machine for the task – avoid inefficient oversized machines.\nSwitch off engines when plant not in use.\nPrioritise battery powered / electric equipment where possible.\nConsider use of (GreenD+) HVO fuel as replacement for diesel.\n",null,"Project team & supply chain / sub-contractors. "]
[null,{"$f":"'Aspect Register - PRINT'!$C$24","v":9},"p",{"$f":"'Aspect Register - PRINT'!$D$24","v":"Earthworks & Excavations"},{"$f":"'Aspect Register - PRINT'!$P$12","v":"Ecology & Biodiversity"},"Normal","Disturbance or harm to local flora & fauna.\nDamage or destruction of habitat.",{"$f":"'Aspect Register - PRINT'!P24","v":0},{"$f":"IF(H91=0,4,IF(H91=\"N/A\",4,IF(H91=\"Low\",3,IF(H91=\"Med\",2,IF(H91=\"Sig\",1)))))","v":4},"Ecological and Arboricultural surveys reviewed and findings communicated on Site Constraints Plan and at site induction.\nObtain a European Protected (EPS) license if required.\nConditions of any license regularly communicated to site team and supply chain via specific Toolbox Talks\nWorks preceded by ecologist check and/or supervised by Ecological Clerk of Works if required.\nAny TPO and/or trees on site that are to be retained will need to be protected with fencing in accordance with the Tree Protection Plan and BS5837.\nSensitive areas protected from unauthorised access.\nProtective measures regularly monitored and maintained, e.g. Newt fencing / Root Protection Zones.\nNo materials to be stored within the protection zone nor access granted, and the use of heavy plant and equipment is to be reviewed in line with any recommendations made regarding the root protection zone.\n","New habitat creation and increase on biodiversity net-gain.","Project team & supply chain / sub-contractors. "]
[null,{"$f":"'Aspect Register - PRINT'!$C$24","v":9},"n",{"$f":"'Aspect Register - PRINT'!$D$24","v":"Earthworks & Excavations"},{"$f":"'Aspect Register - PRINT'!$N$12","v":"Land Contamination"},"Normal","Pollution of land and nearby watercourses.\nRisk to human health.",{"$f":"'Aspect Register - PRINT'!N24","v":0},{"$f":"IF(H92=0,4,IF(H92=\"N/A\",4,IF(H92=\"Low\",3,IF(H92=\"Med\",2,IF(H92=\"Sig\",1)))))","v":4},"Carry out a Site Investigation to identify any potential existing contamination\nAnalyse soil for health risks and waste acceptance criteria.\nRemediate any contaminated soil to allow for reuse\nIf the contaminated soil is not suitable for use remove it from site as Hazardous Waste\nPlan your site so that you can separate contaminated materials from non-contaminated materials\nIf any unexpected contamination is found during works, stop work until the materials have been adequately identified\nStore hedgerow and watercourse topsoil separate to ensure reinstatement in hedgerow and watercourses where possible\nTopsoil kept free of vehicle, plant, equipment, litter, spillages etc.\nEnsure any presence of invasive weeds are treated or removed from site.\nComply with local planning authority conditions.\nEnsure RAMS are in placed for activity.\nSeparate stockpile from subsoil.\nProvide COSHH, fuels etc with appropriate containment e.g. bunded, double-skinned tanks, plant nappy / enviropad for small items of plant.\nControl surface drainage from stockpiled area. Water draining from the stockpile may be contaminated and need controlled off-site disposal.\nInstall dust/odour suppression where required.\nDo not store materials closer than 10m to drains.\nObtain a materials management plan (MMP) to enable excavated soils that are suitable for reuse where required.\nCarry out a Verification testing and reporting to confirm that the remediation/risk management design has been implemented.\nCommunicate risks to the Supply Chain.\n","Opportunity to locally remediate land and improve quality.  ","Project team & supply chain / sub-contractors. "]
[null,{"$f":"'Aspect Register - PRINT'!$C$24","v":9},"m",{"$f":"'Aspect Register - PRINT'!$D$24","v":"Earthworks & Excavations"},{"$f":"'Aspect Register - PRINT'!$M$12","v":"Cultural Heritage"},"Normal","Damage to listed/protected buildings or ancient monuments.\nDamage to artifacts of historical/archaeological interest.",{"$f":"'Aspect Register - PRINT'!M24","v":0},{"$f":"IF(H93=0,4,IF(H93=\"N/A\",4,IF(H93=\"Low\",3,IF(H93=\"Med\",2,IF(H93=\"Sig\",1)))))","v":4},"Conduct desktop survey and if necessary commission further investigation to understand the level of risk.\nMaintain watching brief during groundwork phases where required.\nIf artifacts of potential value are found, works to be stopped and an archaeological consultant appointed.\nReport any findings to Historic England and Local Planning Authority. \nObtain relevant consent / licence from Historic England if required.\nIncorporation of approved methods into RAMS & briefed.\nCommunicate site requirements on Site Constraints Plan and at site induction.\n",null,"Project team & supply chain / sub-contractors. "]
[null,{"$f":"'Aspect Register - PRINT'!$C$24","v":9},"g",{"$f":"'Aspect Register - PRINT'!$D$24","v":"Earthworks & Excavations"},{"$f":"'Aspect Register - PRINT'!$G$12","v":"Dust or Odour"},"Normal","Disturb or harm to neighbouring communities.\nDisturb or harm to local fauna.",{"$f":"'Aspect Register - PRINT'!G24","v":0},{"$f":"IF(H94=0,4,IF(H94=\"N/A\",4,IF(H94=\"Low\",3,IF(H94=\"Med\",2,IF(H94=\"Sig\",1)))))","v":4},"Cover or seed material stockpiles where necessary.\nReview site Geo-technical Survey for issues relating to contamination.\nUse of dust suppression / dampen down activities.\nEquipment maintained in accordance with the manufacturers instructions.\nAdhere to any relevant planning conditions.\nCommunicate with local residents. \nIdentify nearby sensitive properties or receptors.\nLocate activity away from sensitive areas where possible.\nDust monitoring installed & data reviewed where applicable.\nScraping & sweeping of roads as necessary.\nVehicles adhering to the Traffic Management Plan and site speed limit.\nConsider use of wheel wash.\n ",null,"Project team & supply chain / sub-contractors. "]
[null,{"$f":"'Aspect Register - PRINT'!$C$24","v":9},"j",{"$f":"'Aspect Register - PRINT'!$D$24","v":"Earthworks & Excavations"},{"$f":"'Aspect Register - PRINT'!$J$12","v":"Ground & Surface Water"},"Normal","Pollution of controlled waters.\n",{"$f":"'Aspect Register - PRINT'!J24","v":0},{"$f":"IF(H95=0,4,IF(H95=\"N/A\",4,IF(H95=\"Low\",3,IF(H95=\"Med\",2,IF(H95=\"Sig\",1)))))","v":4},"Divert rain/surface water away from excavations to prevent filling.\nProtection of drains to prevent silt ingress.\nPrevent run-off from leaving site (e.g. silt fencing)\nIdentify watercourses, ditches, drains within, or close to, the site boundary on the Site Drainage Plan. \nDo not store materials closer than 10m to drains, ditches or watercourse.\nCommunicate risks to supply chain.\nCarry out spill training to site team.\n",null,"Project team & supply chain / sub-contractors. "]
[null,{"$f":"'Aspect Register - PRINT'!$C$24","v":9},"h",{"$f":"'Aspect Register - PRINT'!$D$24","v":"Earthworks & Excavations"},{"$f":"'Aspect Register - PRINT'!$H$12","v":"Highway Traffic"},null,"Congestion on local roads causing nuisance.\n",{"$f":"'Aspect Register - PRINT'!H24","v":0},{"$f":"IF(H96=0,4,IF(H96=\"N/A\",4,IF(H96=\"Low\",3,IF(H96=\"Med\",2,IF(H96=\"Sig\",1)))))","v":4},"Adhere to any planning restrictions.\nEnsuring local / planning restrictions such as delivery times are met.\nConsider routes that bypass sensitive areas such as schools or shopping areas.\nConsider traffic speed limits on approach to site.\nVehicles adhering to the Traffic Management Plan and site speed limit.\nInstall protection measures for property, street furniture, soft banks etc.\nDisplay sufficient directional signage for deliveries and traffic marshalling where required.\nCommunicate with local residents.\n",null,"Project team & supply chain / sub-contractors"]
[null,{"$f":"'Aspect Register - PRINT'!$C$24","v":9},"f",{"$f":"'Aspect Register - PRINT'!$D$24","v":"Earthworks & Excavations"},{"$f":"'Aspect Register - PRINT'!$F$12","v":"Noise,  Light or Vibration"},null,"Disturbance to neighbouring communities.\nDisturbance of flora & fauna.",{"$f":"'Aspect Register - PRINT'!F24","v":0},{"$f":"IF(H97=0,4,IF(H97=\"N/A\",4,IF(H97=\"Low\",3,IF(H97=\"Med\",2,IF(H97=\"Sig\",1)))))","v":4},"Plant and vehicle maintenance in accordance with the manufacturers instructions.\nAdhere to site speed limits.\nSwitch off engines when plant not in use.\nMaintenance of access tracks / roads. \nCommunicate with local residents. \nAdhere to any relevant planning conditions.\nIdentify nearby sensitive properties or receptors.\nSite machinery / plant away from sensitive areas.\nNoise/Vibration monitoring installed & data reviewed where applicable.\nConsider the requirement for Section 61 Notice application and comply.\n",null,"Project team & supply chain / sub-contractors. "]
[null,{"$f":"'Aspect Register - PRINT'!$C$24","v":9},"q",{"$f":"'Aspect Register - PRINT'!$D$24","v":"Earthworks & Excavations"},"Other - Please complete","Normal","Please complete",{"$f":"'Aspect Register - PRINT'!Q24","v":0},{"$f":"IF(H98=0,4,IF(H98=\"N/A\",4,IF(H98=\"Low\",3,IF(H98=\"Med\",2,IF(H98=\"Sig\",1)))))","v":4},"Please complete","Please complete","Please complete"]
[null,{"$f":"'Aspect Register - PRINT'!$C$24","v":9},"i",{"$f":"'Aspect Register - PRINT'!$D$24","v":"Earthworks & Excavations"},{"$f":"'Aspect Register - PRINT'!$I$12","v":"Visual Impact"},null,"Disturb neighbouring communities.\n",{"$f":"'Aspect Register - PRINT'!I24","v":0},{"$f":"IF(H99=0,4,IF(H99=\"N/A\",4,IF(H99=\"Low\",3,IF(H99=\"Med\",2,IF(H99=\"Sig\",1)))))","v":4},"Appropriate housekeeping of materials and waste.\nBattering, segregation and labelling of stockpiled materials. \nMaintenance of access tracks / roads inc. scraping & sweeping as necessary.\nEquipment maintained in accordance with the manufacturers instructions.\nCommunicate with local residents. \nIdentify nearby sensitive properties or receptors.\nLocate activity away from sensitive areas where possible.\nVehicles adhering to the Traffic Management Plan and site speed limit.\nConsider use of wheel wash.\n",null,"Project team & supply chain / sub-contractors. "]
[null,{"$f":"'Aspect Register - PRINT'!$C$24","v":9},"l",{"$f":"'Aspect Register - PRINT'!$D$24","v":"Earthworks & Excavations"},{"$f":"'Aspect Register - PRINT'!$L$12","v":"Waste"},null,"Increased landfill or energy required to recycle. \nLittering / fly-tipping.\nBreach of legislation due to use of unauthorised carriers and/or disposal sites.",{"$f":"'Aspect Register - PRINT'!L24","v":0},{"$f":"IF(H100=0,4,IF(H100=\"N/A\",4,IF(H100=\"Low\",3,IF(H100=\"Med\",2,IF(H100=\"Sig\",1)))))","v":4},"Carry out cut & fill exercise to maximise reuse of site arisings.\nObtain U1 Exemption (<1000T) or Cl:aire MMP (>1000T) for reuse of made ground.\nRecord all waste information on Site Waste Management Plan.\nAnalysis of waste materials may be required for health risks, Waste Classification (WM3). \nWaste Acceptance Criteria (WAC) may be required if destined for landfill.\nApply the waste hierarchy e.g. Eliminate - Reduce - Reuse - Recycle.\nEnsure correct segregation and storage of waste streams.\nUse of Persimmon approved waste contractors.\nObtain Duty Of Care documentation for all waste contractors.\nRetain waste transfer notes (WTN) for min. 2 years or min. 3 years for hazardous consignment note.\nPrevent wind blown waste i.e. skip covers, haulage lorries covered etc.\nCommunicate site requirements at site induction.\n",null,"Project team & supply chain / sub-contractors. "]
[null,{"$f":"'Aspect Register - PRINT'!$C$25","v":10},"o",{"$f":"'Aspect Register - PRINT'!$D$25","v":"Piling"},{"$f":"'Aspect Register - PRINT'!$O$12","v":"Resource Use \ne.g. Materials, Energy or Water"},"Normal","Emission of air pollutants from fossil fuel combustion\nIncreased GHG emissions contributing to climate change",{"$f":"'Aspect Register - PRINT'!O25","v":0},{"$f":"IF(H101=0,4,IF(H101=\"N/A\",4,IF(H101=\"Low\",3,IF(H101=\"Med\",2,IF(H101=\"Sig\",1)))))","v":4},"Ensure equipment is well maintained and suitable for the task. \nMeasure eKPIs (diesel, electric, waster usage).\n",null,"Project team & supply chain / sub-contractors"]
[null,{"$f":"'Aspect Register - PRINT'!$C$25","v":10},"p",{"$f":"'Aspect Register - PRINT'!$D$25","v":"Piling"},{"$f":"'Aspect Register - PRINT'!$P$12","v":"Ecology & Biodiversity"},null,"Disturbance or harm to local flora & fauna.\nDamage or destruction of habitat.",{"$f":"'Aspect Register - PRINT'!P25","v":0},{"$f":"IF(H102=0,4,IF(H102=\"N/A\",4,IF(H102=\"Low\",3,IF(H102=\"Med\",2,IF(H102=\"Sig\",1)))))","v":4},"Ecological and Arboricultural surveys reviewed and findings communicated on Site Constraints Plan and at site induction.\nObtain a European Protected (EPS) license if required.\nConditions of any license regularly communicated to site team and supply chain via specific Toolbox Talks\nWorks preceded by ecologist check and/or supervised by Ecological Clerk of Works if required.\nAny TPO and/or trees on site that are to be retained will need to be protected with fencing in accordance with the Tree Protection Plan and BS5837.\nSensitive areas protected from unauthorised access.\nProtective measures regularly monitored and maintained, e.g. Newt fencing / Root Protection Zones.\nNo materials to be stored within the protection zone nor access granted, and the use of heavy plant and equipment is to be reviewed in line with any recommendations made regarding the root protection zone.\n",null,"Project team & supply chain / sub-contractors"]
[null,{"$f":"'Aspect Register - PRINT'!$C$25","v":10},"n",{"$f":"'Aspect Register - PRINT'!$D$25","v":"Piling"},{"$f":"'Aspect Register - PRINT'!$N$12","v":"Land Contamination"},null,"Pollution of land and nearby watercourses.\nRisk to human health.",{"$f":"'Aspect Register - PRINT'!N25","v":0},{"$f":"IF(H103=0,4,IF(H103=\"N/A\",4,IF(H103=\"Low\",3,IF(H103=\"Med\",2,IF(H103=\"Sig\",1)))))","v":4},"Carry out a Site Investigation to identify any potential existing contamination\nAnalyse soil for health risks and waste acceptance criteria.\nRemediate any contaminated soil to allow for reuse\nIf the contaminated soil is not suitable for use remove it from site as Hazardous Waste\nPlan your site so that you can separate contaminated materials from non-contaminated materials\nIf any unexpected contamination is found during works, stop work until the materials have been adequately identified\nStore hedgerow and watercourse topsoil separate to ensure reinstatement in hedgerow and watercourses where possible\nTopsoil kept free of vehicle, plant, equipment, litter, spillages etc.\nEnsure any presence of invasive weeds are treated or removed from site\nComply with local planning authority conditions\nEnsure RAMS are in placed for activity.\nSeparate stockpile from subsoil.\nProvide COSHH, fuels etc with appropriate containment e.g. bunded, double-skinned tanks, plant nappy / enviropad for small items of plant\nInstall dust/odour suppression where required\nDo not store materials closer than 10m to drains\nObtain a materials management plan (MMP) to enable excavated soils that are suitable for reuse where required\nCarry out a Verification testing and reporting to confirm that the remediation/risk management design has been implemented\nCommunicate risks to the Supply Chain.\n",null,"Project team & supply chain / sub-contractors"]
[null,{"$f":"'Aspect Register - PRINT'!$C$25","v":10},"m",{"$f":"'Aspect Register - PRINT'!$D$25","v":"Piling"},{"$f":"'Aspect Register - PRINT'!$M$12","v":"Cultural Heritage"},"Normal","Damage to listed/protected buildings or ancient monuments.\nDamage to artifacts of historical/archaeological interest.",{"$f":"'Aspect Register - PRINT'!M25","v":0},{"$f":"IF(H104=0,4,IF(H104=\"N/A\",4,IF(H104=\"Low\",3,IF(H104=\"Med\",2,IF(H104=\"Sig\",1)))))","v":4},"Conduct desktop survey and if necessary commission further investigation to understand the level of risk.\nMaintain watching brief during groundwork phases where required.\nIf artifacts of potential value are found, works to be stopped and an archaeological consultant appointed.\nReport any findings to Historic England and Local Planning Authority. \nObtain relevant consent / licence from Historic England if required.\nIncorporation of approved methods into RAMS & briefed.\nCommunicate site requirements on Site Constraints Plan and at site induction.\n",null,"Project team & supply chain / sub-contractors"]
[null,{"$f":"'Aspect Register - PRINT'!$C$25","v":10},"g",{"$f":"'Aspect Register - PRINT'!$D$25","v":"Piling"},{"$f":"'Aspect Register - PRINT'!$G$12","v":"Dust or Odour"},"Normal","Disturb or harm to neighbouring communities.\nDisturb or harm to local fauna.",{"$f":"'Aspect Register - PRINT'!G25","v":0},{"$f":"IF(H105=0,4,IF(H105=\"N/A\",4,IF(H105=\"Low\",3,IF(H105=\"Med\",2,IF(H105=\"Sig\",1)))))","v":4},"Review site Geo-technical Survey for issues relating to contamination.\nUse of dust suppression / dampen down activities.\nEquipment maintained in accordance with the manufacturers instructions.\nAdhere to any relevant planning conditions.\nCommunicate with local residents. \nIdentify nearby sensitive properties or receptors.\nLocate activity away from sensitive areas where possible.\nDust monitoring installed & data reviewed where applicable.\n\n",null,"Project team & supply chain / sub-contractors"]
[null,{"$f":"'Aspect Register - PRINT'!$C$25","v":10},"j",{"$f":"'Aspect Register - PRINT'!$D$25","v":"Piling"},{"$f":"'Aspect Register - PRINT'!$J$12","v":"Ground & Surface Water"},null,"Pollution of controlled waters.\n",{"$f":"'Aspect Register - PRINT'!J25","v":0},{"$f":"IF(H106=0,4,IF(H106=\"N/A\",4,IF(H106=\"Low\",3,IF(H106=\"Med\",2,IF(H106=\"Sig\",1)))))","v":4},"Divert rain/surface water away from excavations to prevent filling.\nProtection of drains to prevent silt ingress.\nPrevent run-off from leaving site (e.g. silt fencing)\nIdentify watercourses, ditches, drains within, or close to, the site boundary on the Site Drainage Plan. \nDo not store materials closer than 10m to drains.\nCommunicate risks to supply chain.\nCarry out spill training to site team.\n",null,"Project team & supply chain / sub-contractors"]
[null,{"$f":"'Aspect Register - PRINT'!$C$25","v":10},"f",{"$f":"'Aspect Register - PRINT'!$D$25","v":"Piling"},{"$f":"'Aspect Register - PRINT'!$F$12","v":"Noise,  Light or Vibration"},"Normal","Disturbance to neighbouring communities.\nDisturbance of flora & fauna.\nDamage to neighbouring buildings.",{"$f":"'Aspect Register - PRINT'!F25","v":0},{"$f":"IF(H107=0,4,IF(H107=\"N/A\",4,IF(H107=\"Low\",3,IF(H107=\"Med\",2,IF(H107=\"Sig\",1)))))","v":4},"Prioritise screwed/auger piling or other low impact alternative over driven piles where possible. \nAssess potential for damage to neighbouring buildings.\nCommunicate with local residents. \nIdentify nearby sensitive properties or receptors.\nSite machinery / plant away from sensitive areas.\nNoise/Vibration monitoring installed & data reviewed where applicable.\nPlant and vehicle maintenance in accordance with the manufacturers instructions.\nAdhere to any relevant planning conditions.\nConsider setting up acoustic sound barriers when reasonably practicable.\nConsider the requirement for Section 61 Notice application and comply.\n",null,"Project team & supply chain / sub-contractors."]
[null,{"$f":"'Aspect Register - PRINT'!$C$25","v":10},"q",{"$f":"'Aspect Register - PRINT'!$D$25","v":"Piling"},"Other - Please complete","Normal","Please complete",{"$f":"'Aspect Register - PRINT'!Q25","v":0},{"$f":"IF(H108=0,4,IF(H108=\"N/A\",4,IF(H108=\"Low\",3,IF(H108=\"Med\",2,IF(H108=\"Sig\",1)))))","v":4},"Please complete","Please complete","Please complete"]
[null,{"$f":"'Aspect Register - PRINT'!$C$25","v":10},"i",{"$f":"'Aspect Register - PRINT'!$D$25","v":"Piling"},{"$f":"'Aspect Register - PRINT'!$I$12","v":"Visual Impact"},null,"Disturb neighbouring communities.\n",{"$f":"'Aspect Register - PRINT'!I25","v":0},{"$f":"IF(H109=0,4,IF(H109=\"N/A\",4,IF(H109=\"Low\",3,IF(H109=\"Med\",2,IF(H109=\"Sig\",1)))))","v":4},"Appropriate housekeeping of materials and waste.\nMaintenance of access tracks / roads inc. scraping & sweeping as necessary.\nEquipment maintained in accordance with the manufacturers instructions.\nCommunicate with local residents. \nIdentify nearby sensitive properties or receptors.\nLocate activity away from sensitive areas where possible.\n",null,"Project team & supply chain / sub-contractors"]
[null,{"$f":"'Aspect Register - PRINT'!$C$26","v":11},"o",{"$f":"'Aspect Register - PRINT'!$D$26","v":"Steel Frame Erection "},{"$f":"'Aspect Register - PRINT'!$O$12","v":"Resource Use \ne.g. Materials, Energy or Water"},"Normal","Emission of air pollutants from fossil fuel combustion\nIncreased GHG emissions contributing to climate change",{"$f":"'Aspect Register - PRINT'!O26","v":0},{"$f":"IF(H110=0,4,IF(H110=\"N/A\",4,IF(H110=\"Low\",3,IF(H110=\"Med\",2,IF(H110=\"Sig\",1)))))","v":4},"Prioritise supply chain partners with BES6001 and / or 14001 accreditation.\nProcure local materials where possible. \nEnsure materials purchased contain low embodied carbon (energy).\nEnsure take-back schemes for packaging and unused amounts of materials are in place.\nStore materials so as to prevent damage, vehicle impact and provide cover where susceptible to water damage.\n","Use of BES6001 responsibly sourced steel.\nUse of low embodied-carbon alternatives.","Project team & supply chain / sub-contractors"]
[null,{"$f":"'Aspect Register - PRINT'!$C$26","v":11},"p",{"$f":"'Aspect Register - PRINT'!$D$26","v":"Steel Frame Erection "},{"$f":"'Aspect Register - PRINT'!$P$12","v":"Ecology & Biodiversity"},null,"Disturbance or harm to local flora & fauna.\nDamage or destruction of habitat.",{"$f":"'Aspect Register - PRINT'!P26","v":0},{"$f":"IF(H111=0,4,IF(H111=\"N/A\",4,IF(H111=\"Low\",3,IF(H111=\"Med\",2,IF(H111=\"Sig\",1)))))","v":4},"Erected frames to be monitored for nesting birds and works stopped if discovered.\nEcological surveys reviewed and findings communicated on Site Constraints Plan and at site induction.\nSensitive areas protected from unauthorised access.\nProtective measures regularly monitored and maintained, e.g. Newt fencing / Root Protection Zones.\n",null,"Project team & supply chain / sub-contractors"]
[null,{"$f":"'Aspect Register - PRINT'!$C$26","v":11},"f",{"$f":"'Aspect Register - PRINT'!$D$26","v":"Steel Frame Erection "},{"$f":"'Aspect Register - PRINT'!$F$12","v":"Noise,  Light or Vibration"},null,"Disturbance to neighbouring communities.\nDisturbance of flora & fauna.",{"$f":"'Aspect Register - PRINT'!F26","v":0},{"$f":"IF(H112=0,4,IF(H112=\"N/A\",4,IF(H112=\"Low\",3,IF(H112=\"Med\",2,IF(H112=\"Sig\",1)))))","v":4},"Communicate with local residents. \nAdhere to any relevant planning conditions.\nIdentify nearby sensitive properties or receptors.\nSite machinery / plant away from sensitive areas.\nNoise/Vibration monitoring installed & data reviewed where applicable.\nConsider the requirement for Section 61 Notice application and comply.\n",null,"Project team & supply chain / sub-contractors."]
[null,{"$f":"'Aspect Register - PRINT'!$C$26","v":11},"q",{"$f":"'Aspect Register - PRINT'!$D$26","v":"Steel Frame Erection "},"Other - Please complete","Normal","Please complete",{"$f":"'Aspect Register - PRINT'!Q26","v":0},{"$f":"IF(H113=0,4,IF(H113=\"N/A\",4,IF(H113=\"Low\",3,IF(H113=\"Med\",2,IF(H113=\"Sig\",1)))))","v":4},"Please complete","Please complete","Please complete"]
[null,{"$f":"'Aspect Register - PRINT'!$C$26","v":11},"i",{"$f":"'Aspect Register - PRINT'!$D$26","v":"Steel Frame Erection "},{"$f":"'Aspect Register - PRINT'!$I$12","v":"Visual Impact"},null,"Disturb neighbouring communities.\n",{"$f":"'Aspect Register - PRINT'!I26","v":0},{"$f":"IF(H114=0,4,IF(H114=\"N/A\",4,IF(H114=\"Low\",3,IF(H114=\"Med\",2,IF(H114=\"Sig\",1)))))","v":4},"Appropriate housekeeping of materials and waste.\nMaintenance of access tracks / roads inc. scraping & sweeping as necessary.\nEquipment maintained in accordance with the manufacturers instructions.\nCommunicate with local residents. \nIdentify nearby sensitive properties or receptors.\nLocate activity away from sensitive areas where possible.\n",null,"Project team & supply chain / sub-contractors"]
[null,{"$f":"'Aspect Register - PRINT'!$C$26","v":11},"l",{"$f":"'Aspect Register - PRINT'!$D$26","v":"Steel Frame Erection "},{"$f":"'Aspect Register - PRINT'!$L$12","v":"Waste"},null,"Increased landfill or energy required to recycle. \nLittering / fly-tipping.\nBreach of legislation due to use of unauthorised carriers and/or disposal sites.",{"$f":"'Aspect Register - PRINT'!I26","v":0},{"$f":"IF(H115=0,4,IF(H115=\"N/A\",4,IF(H115=\"Low\",3,IF(H115=\"Med\",2,IF(H115=\"Sig\",1)))))","v":4},"Apply the waste hierarchy e.g. Eliminate - Reduce - Reuse - Recycle.\nEnsure correct segregation and storage of waste streams.\nUse of Persimmon approved waste contractors.\nObtain Duty Of Care documentation for all waste contractors.\nRetain waste transfer notes (WTN) for min. 2 years or min. 3 years for hazardous consignment note.\nPrevent wind blown waste i.e. skip covers, haulage lorries covered etc.\nCommunicate site requirements at site induction.\n",null,"Project team & supply chain / sub-contractors. "]
[null,{"$f":"'Aspect Register - PRINT'!$C$27","v":12},"o",{"$f":"'Aspect Register - PRINT'!$D$27","v":"Import or Export of Soil & Aggregates"},{"$f":"'Aspect Register - PRINT'!$O$12","v":"Resource Use \ne.g. Materials, Energy or Water"},"Normal","Emission of air pollutants from fossil fuel combustion\nIncreased GHG emissions contributing to climate change",{"$f":"'Aspect Register - PRINT'!O27","v":0},{"$f":"IF(H116=0,4,IF(H116=\"N/A\",4,IF(H116=\"Low\",3,IF(H116=\"Med\",2,IF(H116=\"Sig\",1)))))","v":4},"Procure local materials where possible.\nEngage with a local haulier contractor to reduce travel distances.\n","Crush site-won waste for use as aggregates on site of production.","Project team & supply chain / sub-contractors"]
[null,{"$f":"'Aspect Register - PRINT'!$C$27","v":12},"n",{"$f":"'Aspect Register - PRINT'!$D$27","v":"Import or Export of Soil & Aggregates"},{"$f":"'Aspect Register - PRINT'!$N$12","v":"Land Contamination"},"Normal","Pollution of land and nearby watercourses.\nRisk to human health.",{"$f":"'Aspect Register - PRINT'!N27","v":0},{"$f":"IF(H117=0,4,IF(H117=\"N/A\",4,IF(H117=\"Low\",3,IF(H117=\"Med\",2,IF(H117=\"Sig\",1)))))","v":4},"Ensure imported recycled aggregates have been crushed in accordance with Aggregates Quality Protocol.\nImported topsoil is certified to BS3882.\nObtain both Grading and Chemical Testing certificates for crushed aggregate.\nIncorporation of approved methods into RAMS & briefed.\nPlan your site so that you can separate contaminated materials from non-contaminated materials.\nIf any unexpected contamination is found during works, stop work until the materials have been adequately identified.\nTopsoil kept free of vehicle, plant, equipment, litter, spillages etc.\nCommunicate risks to the Supply Chain.\n",null,"Project team & supply chain / sub-contractors"]
[null,{"$f":"'Aspect Register - PRINT'!$C$27","v":12},"q",{"$f":"'Aspect Register - PRINT'!$D$27","v":"Import or Export of Soil & Aggregates"},"Other - Please complete","Normal","Please complete",{"$f":"'Aspect Register - PRINT'!Q27","v":0},{"$f":"IF(H118=0,4,IF(H118=\"N/A\",4,IF(H118=\"Low\",3,IF(H118=\"Med\",2,IF(H118=\"Sig\",1)))))","v":4},"Please complete","Please complete","Please complete"]
[null,{"$f":"'Aspect Register - PRINT'!$C$27","v":12},"h",{"$f":"'Aspect Register - PRINT'!$D$27","v":"Import or Export of Soil & Aggregates"},{"$f":"'Aspect Register - PRINT'!$H$12","v":"Highway Traffic"},null,"Congestion on local roads causing nuisance.\n",{"$f":"'Aspect Register - PRINT'!H27","v":0},{"$f":"IF(H119=0,4,IF(H119=\"N/A\",4,IF(H119=\"Low\",3,IF(H119=\"Med\",2,IF(H119=\"Sig\",1)))))","v":4},"Adhere to any planning restrictions.\nEnsuring local / planning restrictions such as delivery times are met.\nConsider routes that bypass sensitive areas such as schools or shopping areas.\nConsider traffic speed limits on approach to site.\nVehicles adhering to the Traffic Management Plan and site speed limit.\nInstall protection measures for property, street furniture, soft banks etc.\nDisplay sufficient directional signage for deliveries and traffic marshalling where required.\nCommunicate with local residents.\n",null,"Project team & supply chain / sub-contractors"]
[null,{"$f":"'Aspect Register - PRINT'!$C$28","v":13},"n",{"$f":"'Aspect Register - PRINT'!$D$28","v":"Use of Cement, Concrete Pouring and Washout"},{"$f":"'Aspect Register - PRINT'!$N$12","v":"Land Contamination"},null,"Pollution of land and nearby watercourses.\nRisk to human health.",{"$f":"'Aspect Register - PRINT'!N28","v":0},{"$f":"IF(H120=0,4,IF(H120=\"N/A\",4,IF(H120=\"Low\",3,IF(H120=\"Med\",2,IF(H120=\"Sig\",1)))))","v":4},"The hierarchy of control in relation to concrete wash-out is:\n 1.Avoid concrete wash-out on site (e.g. use of ConcreteSock®)\n 2.Use concrete wagons with integrated wash-out collection tanks\n 3.Contain on site and pump back into concrete wagon for reuse at the batching plant\n 4.Treat on site (e.g. BlueRinse®) and either;\n  a.Use for damping down haul roads (see EA RPS 235 for rules which must be followed)\n  b.Discharge to foul sewer under a temporary Trade Effluent Consent\n  c.Discharge to surface water in accordance with an Environmental Permit (no silts, pH between 6-9)\n  d.Tanker off site and dispose of at a permitted water treatment facility as a waste.\n 5. Use of a lined concrete skip to contain and allow water to evaporate.\nIdentify watercourses, ditches, drains within, or close to, the site boundary on the Site Drainage Plan. \nDo not store materials closer than 10m to drains.\nDo not discharge onto ground.\nCommunicate risks to supply chain.\nCarry out spill training to site team.\n",null,"Project team & supply chain / sub-contractors"]
[null,{"$f":"'Aspect Register - PRINT'!$C$28","v":13},"g",{"$f":"'Aspect Register - PRINT'!$D$28","v":"Use of Cement, Concrete Pouring and Washout"},{"$f":"'Aspect Register - PRINT'!$G$12","v":"Dust or Odour"},"Normal","Disturb or harm to neighbouring communities.\nDisturb or harm to local fauna.",{"$f":"'Aspect Register - PRINT'!G28","v":0},{"$f":"IF(H121=0,4,IF(H121=\"N/A\",4,IF(H121=\"Low\",3,IF(H121=\"Med\",2,IF(H121=\"Sig\",1)))))","v":4},"Use of dust suppression / dampen down activities.\nIdentify nearby sensitive properties or receptors.\nLocate activity away from sensitive areas where possible.\nDust monitoring installed & data reviewed where applicable.\n",null,"Project team & supply chain / sub-contractors"]
[null,{"$f":"'Aspect Register - PRINT'!$C$28","v":13},"p",{"$f":"'Aspect Register - PRINT'!$D$28","v":"Use of Cement, Concrete Pouring and Washout"},{"$f":"'Aspect Register - PRINT'!$P$12","v":"Ecology & Biodiversity"},"Normal","Disturbance or harm to local flora & fauna.\nDamage or destruction of habitat.",{"$f":"'Aspect Register - PRINT'!P28","v":0},{"$f":"IF(H122=0,4,IF(H122=\"N/A\",4,IF(H122=\"Low\",3,IF(H122=\"Med\",2,IF(H122=\"Sig\",1)))))","v":4},"Cement silos and mixer areas to be suitably bunded to prevent run-off.\nEcological surveys reviewed and findings communicated on Site Constraints Plan and at site induction.\nSensitive areas protected from unauthorised access.\nProtective measures regularly monitored and maintained, e.g. Newt fencing / Root Protection Zones.\n",null,"Project team & supply chain / sub-contractors"]
[null,{"$f":"'Aspect Register - PRINT'!$C$28","v":13},"j",{"$f":"'Aspect Register - PRINT'!$D$28","v":"Use of Cement, Concrete Pouring and Washout"},{"$f":"'Aspect Register - PRINT'!$J$12","v":"Ground & Surface Water"},"Normal","Pollution of controlled waters.\n",{"$f":"'Aspect Register - PRINT'!J28","v":0},{"$f":"IF(H123=0,4,IF(H123=\"N/A\",4,IF(H123=\"Low\",3,IF(H123=\"Med\",2,IF(H123=\"Sig\",1)))))","v":4},"The hierarchy of control in relation to concrete wash-out is:\n 1.Avoid concrete wash-out on site (e.g. use of ConcreteSock®)\n 2.Use concrete wagons with integrated wash-out collection tanks\n 3.Contain on site and pump back into concrete wagon for reuse at the batching plant\n 4.Treat on site (e.g. BlueRinse®) and either;\n  a.Use for damping down haul roads (see EA RPS 235 for rules which must be followed)\n  b.Discharge to foul sewer under a temporary Trade Effluent Consent\n  c.Discharge to surface water in accordance with an Environmental Permit (no silts, pH between 6-9)\n  d.Tanker off site and dispose of at a permitted water treatment facility as a waste.\n 5. Use of a lined concrete skip to contain and allow water to evaporate.\nIdentify watercourses, ditches, drains within, or close to, the site boundary on the Site Drainage Plan. \nDo not store materials closer than 10m to drains.\nCommunicate risks to supply chain.\nCarry out spill training to site team.\n",null,"Project team & supply chain / sub-contractors. "]
[null,{"$f":"'Aspect Register - PRINT'!$C$28","v":13},"f",{"$f":"'Aspect Register - PRINT'!$D$28","v":"Use of Cement, Concrete Pouring and Washout"},{"$f":"'Aspect Register - PRINT'!$F$12","v":"Noise,  Light or Vibration"},null,"Disturbance to neighbouring communities.\nDisturbance of flora & fauna.",{"$f":"'Aspect Register - PRINT'!F28","v":0},{"$f":"IF(H124=0,4,IF(H124=\"N/A\",4,IF(H124=\"Low\",3,IF(H124=\"Med\",2,IF(H124=\"Sig\",1)))))","v":4},"Plant and vehicle maintenance in accordance with the manufacturers instructions.\nAdhere to site speed limits.\nSwitch off engines when plant not in use.\nMaintenance of access tracks / roads. \nCommunicate with local residents. \nAdhere to any relevant planning conditions.\nIdentify nearby sensitive properties or receptors.\nSite machinery / plant / silos away from sensitive areas.\nNoise/Vibration monitoring installed & data reviewed where applicable.\nConsider the requirement for Section 61 Notice application and comply.\n",null,"Project team & supply chain / sub-contractors"]
[null,{"$f":"'Aspect Register - PRINT'!$C$28","v":13},"q",{"$f":"'Aspect Register - PRINT'!$D$28","v":"Use of Cement, Concrete Pouring and Washout"},"Other - Please complete","Normal","Please complete",{"$f":"'Aspect Register - PRINT'!Q28","v":0},{"$f":"IF(H125=0,4,IF(H125=\"N/A\",4,IF(H125=\"Low\",3,IF(H125=\"Med\",2,IF(H125=\"Sig\",1)))))","v":4},"Please complete","Please complete","Please complete"]
[null,{"$f":"'Aspect Register - PRINT'!$C$28","v":13},"o",{"$f":"'Aspect Register - PRINT'!$D$28","v":"Use of Cement, Concrete Pouring and Washout"},{"$f":"'Aspect Register - PRINT'!$O$12","v":"Resource Use \ne.g. Materials, Energy or Water"},"Normal","Emission of air pollutants from fossil fuel combustion\nIncreased GHG emissions contributing to climate change\nConsumption of natural resources",{"$f":"'Aspect Register - PRINT'!O28","v":0},{"$f":"IF(H126=0,4,IF(H126=\"N/A\",4,IF(H126=\"Low\",3,IF(H126=\"Med\",2,IF(H126=\"Sig\",1)))))","v":4},"Consider low carbon alternatives where possible.\nEnsure plant & machinery is turned off when not in use.\nRepair / fix leaks e.g. water hose.\nDo not over-order concrete to ensure minimum wastage.\nRe-use concrete where possible.\nSupervision of deliveries. \nPrioritise supply chain partners with BES6001 and / or 14001 accreditation.\nProcure local materials where possible. \n","Use of low embodied-carbon alternatives.","Project team & supply chain / sub-contractors"]
[null,{"$f":"'Aspect Register - PRINT'!$C$28","v":13},"l",{"$f":"'Aspect Register - PRINT'!$D$28","v":"Use of Cement, Concrete Pouring and Washout"},{"$f":"'Aspect Register - PRINT'!$L$12","v":"Waste"},"Normal","Increased landfill or energy required to recycle. \nLittering / fly-tipping.\nBreach of legislation due to use of unauthorised carriers and/or disposal sites.",{"$f":"'Aspect Register - PRINT'!L28","v":0},{"$f":"IF(H127=0,4,IF(H127=\"N/A\",4,IF(H127=\"Low\",3,IF(H127=\"Med\",2,IF(H127=\"Sig\",1)))))","v":4},"Where possible use silos to eliminate ready mix mortar use.\nEnsuring Just in Time deliveries to minimise waste if using ready mixed mortar.\nGood housekeeping and storage of cement bags to prevent wastage.\nApply the waste hierarchy e.g. Eliminate - Reduce - Reuse - Recycle.\nEnsure correct segregation and storage of waste streams.\nUse of Persimmon approved waste contractors.\nObtain Duty Of Care documentation for all waste contractors.\nRetain waste transfer notes (WTN) for min. 2 years or min. 3 years for hazardous consignment note.\nPrevent wind blown waste i.e. skip covers, haulage lorries covered etc.\nCommunicate site requirements at site induction.",null,"Project team & supply chain / sub-contractors."]
[null,{"$f":"'Aspect Register - PRINT'!$C$29","v":14},"q",{"$f":"'Aspect Register - PRINT'!$D$29","v":"Drainage of Storm and Foul Water"},"Other - Please complete","Normal","Please complete",{"$f":"'Aspect Register - PRINT'!Q29","v":0},{"$f":"IF(H128=0,4,IF(H128=\"N/A\",4,IF(H128=\"Low\",3,IF(H128=\"Med\",2,IF(H128=\"Sig\",1)))))","v":4},"Please complete","Please complete","Please complete"]
[null,{"$f":"'Aspect Register - PRINT'!$C$29","v":14},"n",{"$f":"'Aspect Register - PRINT'!$D$29","v":"Drainage of Storm and Foul Water"},{"$f":"'Aspect Register - PRINT'!$N$12","v":"Land Contamination"},null,"Pollution of land and nearby watercourses.\nRisk to human health.",{"$f":"'Aspect Register - PRINT'!N29","v":0},{"$f":"IF(H129=0,4,IF(H129=\"N/A\",4,IF(H129=\"Low\",3,IF(H129=\"Med\",2,IF(H129=\"Sig\",1)))))","v":4},"Carry out a Site Investigation to identify any potential existing contamination.\nRemediate any contamination to allow for reuse.\nIf the contamination is not suitable for use remove it from site as Hazardous Waste.\nPlan your site so that you can separate contaminated materials from non-contaminated materials.\nIf any unexpected contamination is found during works, stop work until the materials have been adequately identified.\nMonitor and record discharge to ensure no release of pollutants.\nIdentify watercourses, ditches, drains within, or close to, the site boundary on the Site Drainage Plan. \nDo not store materials closer than 10m to drains.\nCommunicate risks to supply chain.\nCarry out spill training to site team.\n",null,"Project team & supply chain / sub-contractors"]
[null,{"$f":"'Aspect Register - PRINT'!$C$29","v":14},"j",{"$f":"'Aspect Register - PRINT'!$D$29","v":"Drainage of Storm and Foul Water"},{"$f":"'Aspect Register - PRINT'!$J$12","v":"Ground & Surface Water"},"Normal","Pollution of controlled waters.\n",{"$f":"'Aspect Register - PRINT'!J29","v":0},{"$f":"IF(H130=0,4,IF(H130=\"N/A\",4,IF(H130=\"Low\",3,IF(H130=\"Med\",2,IF(H130=\"Sig\",1)))))","v":4},"Identify any drains likely to be affected as part of works. \nPrevent silt ingress to drains by installing suitable protection e.g. Witches Hat.\nSweeping of roads to reduce silt and mud heading to drains.\nEnsure suitable maintenance of pump stations to prevent failure.\nDrains cleaned before making live connection.\nIdentify watercourses, ditches, drains within, or close to, the site boundary on the Site Drainage Plan. \nDo not store materials closer than 10m to drains.\nCommunicate risks to supply chain.\nCarry out spill training to site team.\n",null,"Project team & supply chain / sub-contractors. "]
[null,{"$f":"'Aspect Register - PRINT'!$C$29","v":14},"l",{"$f":"'Aspect Register - PRINT'!$D$29","v":"Drainage of Storm and Foul Water"},{"$f":"'Aspect Register - PRINT'!$L$12","v":"Waste"},"Normal","Increased landfill or energy required to recycle. \nLittering / fly-tipping.\nBreach of legislation due to use of unauthorised carriers and/or disposal sites.",{"$f":"'Aspect Register - PRINT'!L29","v":0},{"$f":"IF(H131=0,4,IF(H131=\"N/A\",4,IF(H131=\"Low\",3,IF(H131=\"Med\",2,IF(H131=\"Sig\",1)))))","v":4},"Minimise offcuts of pipe.\nApply the waste hierarchy e.g. Eliminate - Reduce - Reuse - Recycle.\nEnsure correct segregation and storage of waste streams.\nUse of Persimmon approved waste contractors.\nObtain Duty Of Care documentation for all waste contractors.\nRetain waste transfer notes (WTN) for min. 2 years or min. 3 years for hazardous consignment note.\nPrevent wind blown waste i.e. skip covers, haulage lorries covered etc.\nCommunicate site requirements at site induction.\n",null,"Project team & supply chain / sub-contractors."]
[null,{"$f":"'Aspect Register - PRINT'!$C$30","v":15},"n",{"$f":"'Aspect Register - PRINT'!$D$30","v":"Dewatering / Overpumping"},{"$f":"'Aspect Register - PRINT'!$N$12","v":"Land Contamination"},null,"Pollution of land and nearby watercourses.\nRisk to human health.",{"$f":"'Aspect Register - PRINT'!N30","v":0},{"$f":"IF(H132=0,4,IF(H132=\"N/A\",4,IF(H132=\"Low\",3,IF(H132=\"Med\",2,IF(H132=\"Sig\",1)))))","v":4},"Carry out a Site Investigation to identify any potential existing contamination.\nRemediate any contamination to allow for reuse.\nIf the contamination is not suitable for use remove it from site as Hazardous Waste.\nPlan your site so that you can separate contaminated materials from non-contaminated materials.\nIf any unexpected contamination is found during works, stop work until the materials have been adequately identified.\nMonitor and record discharge to ensure no release of pollutants.\nCompletion of Persimmon form EMS-FOR-011 - Permit to Pump.\nIdentify watercourses, ditches, drains within, or close to, the site boundary on the Site Drainage Plan. \nDo not store materials closer than 10m to drains.\nCommunicate risks to supply chain.\nCarry out spill training to site team.\n",null,"Project team & supply chain / sub-contractors"]
[null,{"$f":"'Aspect Register - PRINT'!$C$30","v":15},"j",{"$f":"'Aspect Register - PRINT'!$D$30","v":"Dewatering / Overpumping"},{"$f":"'Aspect Register - PRINT'!$J$12","v":"Ground & Surface Water"},"Normal","Pollution of controlled waters.\n",{"$f":"'Aspect Register - PRINT'!J30","v":0},{"$f":"IF(H133=0,4,IF(H133=\"N/A\",4,IF(H133=\"Low\",3,IF(H133=\"Med\",2,IF(H133=\"Sig\",1)))))","v":4},"The hierarchy of control in relation to dewatering is:\n 1) Pump onto vegetated land owned by Persimmon.\n 2) Pump onto external vegetated land with permission of land owner. \n 3) Discharge clean water, treated via a settlement tank or filter to sewer / foul system with permission from the water company and obtain a Trade Effluent Consent.\n 4) Discharge clean water, treated via a settlement tank or filter to local watercourse or storm drain following the EA RPS titled \"Temporary dewatering from excavations to surface water\".\nMonitor and record discharge to ensure no release of pollutants.\nCompletion of Persimmon form EMS-FOR-011 - Permit to Pump..\nIdentify watercourses, ditches, drains within, or close to, the site boundary on the Site Drainage Plan. \nDo not store materials closer than 10m to drains.\nCommunicate risks to supply chain.\nCarry out spill training to site team.\n",null,"Project team & supply chain / sub-contractors. "]
[null,{"$f":"'Aspect Register - PRINT'!$C$30","v":15},"q",{"$f":"'Aspect Register - PRINT'!$D$30","v":"Dewatering / Overpumping"},"Other - Please complete","Normal","Please complete",{"$f":"'Aspect Register - PRINT'!Q30","v":0},{"$f":"IF(H134=0,4,IF(H134=\"N/A\",4,IF(H134=\"Low\",3,IF(H134=\"Med\",2,IF(H134=\"Sig\",1)))))","v":4},"Please complete","Please complete","Please complete"]
[null,{"$f":"'Aspect Register - PRINT'!$C$30","v":15},"o",{"$f":"'Aspect Register - PRINT'!$D$30","v":"Dewatering / Overpumping"},{"$f":"'Aspect Register - PRINT'!$O$12","v":"Resource Use \ne.g. Materials, Energy or Water"},null,"Emission of air pollutants from fossil fuel combustion\nIncreased GHG emissions contributing to climate change\nConsumption of natural resources",{"$f":"'Aspect Register - PRINT'!O30","v":0},{"$f":"IF(H135=0,4,IF(H135=\"N/A\",4,IF(H135=\"Low\",3,IF(H135=\"Med\",2,IF(H135=\"Sig\",1)))))","v":4},"Plant maintenance in accordance with the manufacturers instructions.\nChoose the right machine for the task – avoid inefficient oversized machines.\nSwitch off engines when plant not in use.\n",null,"Project team & supply chain / sub-contractors. "]
[null,{"$f":"'Aspect Register - PRINT'!$C$31","v":16},"p",{"$f":"'Aspect Register - PRINT'!$D$31","v":"Working Near a Watercourse"},{"$f":"'Aspect Register - PRINT'!$P$12","v":"Ecology & Biodiversity"},"Normal","Disturbance or harm to local flora & fauna.\nDamage or destruction of habitat.",{"$f":"'Aspect Register - PRINT'!P31","v":0},{"$f":"IF(H136=0,4,IF(H136=\"N/A\",4,IF(H136=\"Low\",3,IF(H136=\"Med\",2,IF(H136=\"Sig\",1)))))","v":4},"Ecological surveys reviewed and findings communicated on Site Constraints Plan and at site induction.\nSensitive areas protected from unauthorised access. Obtain a European Protected (EPS) license if required.\nConditions of any license regularly communicated to site team and supply chain via specific Toolbox Talks\nWorks preceded by ecologist check and/or supervised by Ecological Clerk of Works if required.\nProtective measures regularly monitored and maintained, e.g. Newt fencing / Root Protection Zones.\n",null,"Project team & supply chain / sub-contractors. "]
[null,{"$f":"'Aspect Register - PRINT'!$C$31","v":16},"j",{"$f":"'Aspect Register - PRINT'!$D$31","v":"Working Near a Watercourse"},{"$f":"'Aspect Register - PRINT'!$J$12","v":"Ground & Surface Water"},"Normal","Pollution of controlled waters.\n",{"$f":"'Aspect Register - PRINT'!J31","v":0},{"$f":"IF(H137=0,4,IF(H137=\"N/A\",4,IF(H137=\"Low\",3,IF(H137=\"Med\",2,IF(H137=\"Sig\",1)))))","v":4},"Identify LLFA (Lead Local Flood Authority)\nObtain a Flood Defence Consent if working within 8m of an EA Main River or 16m of Tidal river.\nObtain an Ordinary Watercourse Consent if working within 8m of a Local Authority controlled watercourse.\nPrevent any run off of silt or pollution entering the watercourse or its embankment.\nVisually inspect water prior and monitor during works.\nTest water where required. \nStorage of fuel and materials to be stored at least 10m from the bank.\nProvide spill kits where necessary and plant nappy for refuelling.\nSmall plant and machinery to be placed on Enviropad or similar.\nIdentify watercourses, ditches, drains within, or close to, the site boundary on the Site Drainage Plan. \nCommunicate risks to supply chain.\nCarry out spill training to site team.\nWatercourse to be shown on Site Constraints Plan.\n",null,"Project team & supply chain / sub-contractors. "]
[null,{"$f":"'Aspect Register - PRINT'!$C$31","v":16},"q",{"$f":"'Aspect Register - PRINT'!$D$31","v":"Working Near a Watercourse"},"Other - Please complete","Normal","Please complete",{"$f":"'Aspect Register - PRINT'!Q31","v":0},{"$f":"IF(H138=0,4,IF(H138=\"N/A\",4,IF(H138=\"Low\",3,IF(H138=\"Med\",2,IF(H138=\"Sig\",1)))))","v":4},"Please complete","Please complete","Please complete"]
[null,{"$f":"'Aspect Register - PRINT'!$C$31","v":16},"o",{"$f":"'Aspect Register - PRINT'!$D$31","v":"Working Near a Watercourse"},{"$f":"'Aspect Register - PRINT'!$O$12","v":"Resource Use \ne.g. Materials, Energy or Water"},null,"Emission of air pollutants from fossil fuel combustion\nIncreased GHG emissions contributing to climate change\nConsumption of natural resources",{"$f":"'Aspect Register - PRINT'!O31","v":0},{"$f":"IF(H139=0,4,IF(H139=\"N/A\",4,IF(H139=\"Low\",3,IF(H139=\"Med\",2,IF(H139=\"Sig\",1)))))","v":4},"Plant and vehicle maintenance in accordance with the manufacturers instructions.\nChoose the right machine for the task – avoid inefficient oversized machines.\nSwitch off engines when plant not in use.\nPrioritise battery powered / electric equipment where possible.\n",null,"Project team & supply chain / sub-contractors. "]
[null,{"$f":"'Aspect Register - PRINT'!$C$31","v":16},"l",{"$f":"'Aspect Register - PRINT'!$D$31","v":"Working Near a Watercourse"},{"$f":"'Aspect Register - PRINT'!$L$12","v":"Waste"},null,"Increased landfill or energy required to recycle. \nLittering / fly-tipping.\nBreach of legislation due to use of unauthorised carriers and/or disposal sites.",{"$f":"'Aspect Register - PRINT'!L31","v":0},{"$f":"IF(H140=0,4,IF(H140=\"N/A\",4,IF(H140=\"Low\",3,IF(H140=\"Med\",2,IF(H140=\"Sig\",1)))))","v":4},"Storage of waste and materials to be stored >10m from the bank.\nPrevent leachate / run-off from waste entering watercourse.\nVisually inspect water prior and monitor during works.\nTest water where required. \nIdentify watercourses, ditches, drains within, or close to, the site boundary on the Site Drainage Plan. \nCommunicate risks to supply chain.\nWatercourse to be shown on Site Constraints Plan.\n",null,"Project team & supply chain / sub-contractors. "]
[null,{"$f":"'Aspect Register - PRINT'!$C$32","v":17},"j",{"$f":"'Aspect Register - PRINT'!$D$32","v":"Mechanical, Electrical & Internal Fit-out"},{"$f":"'Aspect Register - PRINT'!$J$12","v":"Ground & Surface Water"},null,"Pollution of controlled waters.\n",{"$f":"'Aspect Register - PRINT'!J32","v":0},{"$f":"IF(H141=0,4,IF(H141=\"N/A\",4,IF(H141=\"Low\",3,IF(H141=\"Med\",2,IF(H141=\"Sig\",1)))))","v":4},"Conduct all washing and cleaning operations in a designated, contained  area isolated from site drainage system.\nContaminated washdown effluent prevented from entering controlled waters.\nDischarge clean water, treated via a settlement tank or filter to sewer / foul system with permission from the water company and obtain a Trade Effluent Consent.\nIdentify watercourses, ditches, drains within, or close to, the site boundary on the Site Drainage Plan. \nDo not store materials closer than 10m to drains.\nCommunicate risks to supply chain.\nCarry out spill training to site team.\n",null,"Project team & supply chain / sub-contractors."]
[null,{"$f":"'Aspect Register - PRINT'!$C$32","v":17},"f",{"$f":"'Aspect Register - PRINT'!$D$32","v":"Mechanical, Electrical & Internal Fit-out"},{"$f":"'Aspect Register - PRINT'!$F$12","v":"Noise,  Light or Vibration"},"Normal","Disturbance to neighbouring communities.\nDisturbance of flora & fauna.",{"$f":"'Aspect Register - PRINT'!F32","v":0},{"$f":"IF(H142=0,4,IF(H142=\"N/A\",4,IF(H142=\"Low\",3,IF(H142=\"Med\",2,IF(H142=\"Sig\",1)))))","v":4},"Communicate with local residents. \nIdentify nearby sensitive properties or receptors.\nSite machinery & equipment sited away from sensitive areas.\nNoise/Vibration monitoring installed & data reviewed where applicable.\nEquipment maintained in accordance with the manufacturers instructions.\nAdhere to any relevant planning conditions.\nConsider setting up acoustic sound barriers when reasonably practicable.\n",null,"Project team & supply chain / sub-contractors."]
[null,{"$f":"'Aspect Register - PRINT'!$C$32","v":17},"q",{"$f":"'Aspect Register - PRINT'!$D$32","v":"Mechanical, Electrical & Internal Fit-out"},"Other - Please complete","Normal","Please complete",{"$f":"'Aspect Register - PRINT'!Q32","v":0},{"$f":"IF(H143=0,4,IF(H143=\"N/A\",4,IF(H143=\"Low\",3,IF(H143=\"Med\",2,IF(H143=\"Sig\",1)))))","v":4},"Please complete","Please complete","Please complete"]
[null,{"$f":"'Aspect Register - PRINT'!$C$32","v":17},"o",{"$f":"'Aspect Register - PRINT'!$D$32","v":"Mechanical, Electrical & Internal Fit-out"},{"$f":"'Aspect Register - PRINT'!$O$12","v":"Resource Use \ne.g. Materials, Energy or Water"},"Normal","Emission of air pollutants from fossil fuel combustion\nIncreased GHG emissions contributing to climate change\nConsumption of natural resources",{"$f":"'Aspect Register - PRINT'!O32","v":0},{"$f":"IF(H144=0,4,IF(H144=\"N/A\",4,IF(H144=\"Low\",3,IF(H144=\"Med\",2,IF(H144=\"Sig\",1)))))","v":4},"Specify/install only A+ rated electrical appliances.\nEnsure equipment is well maintained and suitable for the task. \nElectrical equipment turned off when not in use.\nOptimise the reuse of offcuts.\nEnsure Just in Time deliveries to prevent damage of materials.\nGood housekeeping and storage of material to prevent wastage.\nStandard sizes considered at the design stage.\nConsider product life-cycle costing.\n",null,"Project team & supply chain / sub-contractors"]
[null,{"$f":"'Aspect Register - PRINT'!$C$32","v":17},"l",{"$f":"'Aspect Register - PRINT'!$D$32","v":"Mechanical, Electrical & Internal Fit-out"},{"$f":"'Aspect Register - PRINT'!$L$12","v":"Waste"},"Normal","Increased landfill or energy required to recycle. \nLittering / fly-tipping.\nBreach of legislation due to use of unauthorised carriers and/or disposal sites.",{"$f":"'Aspect Register - PRINT'!L32","v":0},{"$f":"IF(H145=0,4,IF(H145=\"N/A\",4,IF(H145=\"Low\",3,IF(H145=\"Med\",2,IF(H145=\"Sig\",1)))))","v":4},"Minimise packaging through supply chain.\nOptimise the reuse of offcuts.\nEnsure Just in Time deliveries to prevent damage of materials.\nGood housekeeping and storage of material to prevent wastage.\nStandard sizes considered at the design stage.\nConsider product life-cycle costing.\nApply the waste hierarchy e.g. Eliminate - Reduce - Reuse - Recycle.\nEnsure correct segregation and storage of waste streams.\nUse of Persimmon approved waste contractors.\nObtain Duty Of Care documentation for all waste contractors.\nRetain waste transfer notes (WTN) for min. 2 years or min. 3 years for hazardous consignment note.\nPrevent wind blown waste i.e. skip covers, haulage lorries covered etc.\nCommunicate site requirements at site induction.\n","Use take-back scheme with supply chain / manufacturer.\nUse a community wood recycling scheme.","Project team & supply chain / sub-contractors."]
[null,{"$f":"'Aspect Register - PRINT'!$C$33","v":18},"n",{"$f":"'Aspect Register - PRINT'!$D$33","v":"Road Sweep, Wheelwash & Jetwashing"},{"$f":"'Aspect Register - PRINT'!$N$12","v":"Land Contamination"},null,"Pollution of land and nearby watercourses.\nRisk to human health.",{"$f":"'Aspect Register - PRINT'!N33","v":0},{"$f":"IF(H146=0,4,IF(H146=\"N/A\",4,IF(H146=\"Low\",3,IF(H146=\"Med\",2,IF(H146=\"Sig\",1)))))","v":4},"Conduct all washing and cleaning operations is a designated, contained  area isolated from site drainage system.\nSuitable maintenance of wheel wash to prevent leaks.\nContaminated washdown effluent prevented from entering controlled waters or onto ground.\nDischarge clean water, treated via a settlement tank or filter to sewer / foul system with permission from the water company and obtain a Trade Effluent Consent.\nEnsure road sweeper is an authorised waste carrier.\nDo not allow road sweepings to be disposed of onsite.\nIdentify watercourses, ditches, drains within, or close to, the site boundary on the Site Drainage Plan. \nCommunicate risks to supply chain.\nCarry out spill training to site team.\n",null,"Project team & supply chain / sub-contractors"]
[null,{"$f":"'Aspect Register - PRINT'!$C$33","v":18},"q",{"$f":"'Aspect Register - PRINT'!$D$33","v":"Road Sweep, Wheelwash & Jetwashing"},"Other - Please complete","Normal","Please complete",{"$f":"'Aspect Register - PRINT'!Q33","v":0},{"$f":"IF(H147=0,4,IF(H147=\"N/A\",4,IF(H147=\"Low\",3,IF(H147=\"Med\",2,IF(H147=\"Sig\",1)))))","v":4},"Please complete","Please complete","Please complete"]
[null,{"$f":"'Aspect Register - PRINT'!$C$33","v":18},"o",{"$f":"'Aspect Register - PRINT'!$D$33","v":"Road Sweep, Wheelwash & Jetwashing"},{"$f":"'Aspect Register - PRINT'!$O$12","v":"Resource Use \ne.g. Materials, Energy or Water"},"Normal","Emission of air pollutants from fossil fuel combustion\nIncreased GHG emissions contributing to climate change\nConsumption of natural resources",{"$f":"'Aspect Register - PRINT'!O33","v":0},{"$f":"IF(H148=0,4,IF(H148=\"N/A\",4,IF(H148=\"Low\",3,IF(H148=\"Med\",2,IF(H148=\"Sig\",1)))))","v":4},"Ensure equipment is well maintained and suitable for the task.\nConsider used of a closed loop water recycling system.\nReuse clean water treated via a settlement tank or filter.\nCarry out periodic checks for leaks.\n",null,"Project team & supply chain / sub-contractors"]
[null,{"$f":"'Aspect Register - PRINT'!$C$34","v":19},"k",{"$f":"'Aspect Register - PRINT'!$D$34","v":"Other - Please Insert"},{"$f":"'Aspect Register - PRINT'!$K$12","v":"Air Pollution"},"Normal","Please complete",{"$f":"'Aspect Register - PRINT'!K34","v":0},{"$f":"IF(H149=0,4,IF(H149=\"N/A\",4,IF(H149=\"Low\",3,IF(H149=\"Med\",2,IF(H149=\"Sig\",1)))))","v":4},"Please complete","Please complete","Please complete"]
[null,{"$f":"'Aspect Register - PRINT'!$C$34","v":19},"m",{"$f":"'Aspect Register - PRINT'!$D$34","v":"Other - Please Insert"},{"$f":"'Aspect Register - PRINT'!$M$12","v":"Cultural Heritage"},"Normal","Please complete",{"$f":"'Aspect Register - PRINT'!M34","v":0},{"$f":"IF(H150=0,4,IF(H150=\"N/A\",4,IF(H150=\"Low\",3,IF(H150=\"Med\",2,IF(H150=\"Sig\",1)))))","v":4},"Please complete","Please complete","Please complete"]
[null,{"$f":"'Aspect Register - PRINT'!$C$34","v":19},"g",{"$f":"'Aspect Register - PRINT'!$D$34","v":"Other - Please Insert"},{"$f":"'Aspect Register - PRINT'!$G$12","v":"Dust or Odour"},"Normal","Please complete",{"$f":"'Aspect Register - PRINT'!G34","v":0},{"$f":"IF(H151=0,4,IF(H151=\"N/A\",4,IF(H151=\"Low\",3,IF(H151=\"Med\",2,IF(H151=\"Sig\",1)))))","v":4},"Please complete","Please complete","Please complete"]
[null,{"$f":"'Aspect Register - PRINT'!$C$34","v":19},"p",{"$f":"'Aspect Register - PRINT'!$D$34","v":"Other - Please Insert"},{"$f":"'Aspect Register - PRINT'!$P$12","v":"Ecology & Biodiversity"},"Normal","Please complete",{"$f":"'Aspect Register - PRINT'!P34","v":0},{"$f":"IF(H152=0,4,IF(H152=\"N/A\",4,IF(H152=\"Low\",3,IF(H152=\"Med\",2,IF(H152=\"Sig\",1)))))","v":4},"Please complete","Please complete","Please complete"]
[null,{"$f":"'Aspect Register - PRINT'!$C$34","v":19},"j",{"$f":"'Aspect Register - PRINT'!$D$34","v":"Other - Please Insert"},{"$f":"'Aspect Register - PRINT'!$J$12","v":"Ground & Surface Water"},"Normal","Please complete",{"$f":"'Aspect Register - PRINT'!J34","v":0},{"$f":"IF(H153=0,4,IF(H153=\"N/A\",4,IF(H153=\"Low\",3,IF(H153=\"Med\",2,IF(H153=\"Sig\",1)))))","v":4},"Please complete","Please complete","Please complete"]
[null,{"$f":"'Aspect Register - PRINT'!$C$34","v":19},"h",{"$f":"'Aspect Register - PRINT'!$D$34","v":"Other - Please Insert"},{"$f":"'Aspect Register - PRINT'!$H$12","v":"Highway Traffic"},"Normal","Please complete",{"$f":"'Aspect Register - PRINT'!H34","v":0},{"$f":"IF(H154=0,4,IF(H154=\"N/A\",4,IF(H154=\"Low\",3,IF(H154=\"Med\",2,IF(H154=\"Sig\",1)))))","v":4},"Please complete","Please complete","Please complete"]
[null,{"$f":"'Aspect Register - PRINT'!$C$34","v":19},"n",{"$f":"'Aspect Register - PRINT'!$D$34","v":"Other - Please Insert"},{"$f":"'Aspect Register - PRINT'!$N$12","v":"Land Contamination"},"Normal","Please complete",{"$f":"'Aspect Register - PRINT'!N34","v":0},{"$f":"IF(H155=0,4,IF(H155=\"N/A\",4,IF(H155=\"Low\",3,IF(H155=\"Med\",2,IF(H155=\"Sig\",1)))))","v":4},"Please complete","Please complete","Please complete"]
[null,{"$f":"'Aspect Register - PRINT'!$C$34","v":19},"f",{"$f":"'Aspect Register - PRINT'!$D$34","v":"Other - Please Insert"},{"$f":"'Aspect Register - PRINT'!$F$12","v":"Noise,  Light or Vibration"},"Normal","Please complete",{"$f":"'Aspect Register - PRINT'!F34","v":0},{"$f":"IF(H156=0,4,IF(H156=\"N/A\",4,IF(H156=\"Low\",3,IF(H156=\"Med\",2,IF(H156=\"Sig\",1)))))","v":4},"Please complete","Please complete","Please complete"]
[null,{"$f":"'Aspect Register - PRINT'!$C$34","v":19},"q",{"$f":"'Aspect Register - PRINT'!$D$34","v":"Other - Please Insert"},"Other - Please complete","Normal","Please complete",{"$f":"'Aspect Register - PRINT'!Q34","v":0},{"$f":"IF(H157=0,4,IF(H157=\"N/A\",4,IF(H157=\"Low\",3,IF(H157=\"Med\",2,IF(H157=\"Sig\",1)))))","v":4},"Please complete","Please complete","Please complete"]
[null,{"$f":"'Aspect Register - PRINT'!$C$34","v":19},"o",{"$f":"'Aspect Register - PRINT'!$D$34","v":"Other - Please Insert"},{"$f":"'Aspect Register - PRINT'!$O$12","v":"Resource Use \ne.g. Materials, Energy or Water"},"Normal","Please complete",{"$f":"'Aspect Register - PRINT'!O34","v":0},{"$f":"IF(H158=0,4,IF(H158=\"N/A\",4,IF(H158=\"Low\",3,IF(H158=\"Med\",2,IF(H158=\"Sig\",1)))))","v":4},"Please complete","Please complete","Please complete"]
[null,{"$f":"'Aspect Register - PRINT'!$C$34","v":19},"i",{"$f":"'Aspect Register - PRINT'!$D$34","v":"Other - Please Insert"},{"$f":"'Aspect Register - PRINT'!$I$12","v":"Visual Impact"},"Normal","Please complete",{"$f":"'Aspect Register - PRINT'!I34","v":0},{"$f":"IF(H159=0,4,IF(H159=\"N/A\",4,IF(H159=\"Low\",3,IF(H159=\"Med\",2,IF(H159=\"Sig\",1)))))","v":4},"Please complete","Please complete","Please complete"]
[null,{"$f":"'Aspect Register - PRINT'!$C$34","v":19},"l",{"$f":"'Aspect Register - PRINT'!$D$34","v":"Other - Please Insert"},{"$f":"'Aspect Register - PRINT'!$L$12","v":"Waste"},"Normal","Please complete",{"$f":"'Aspect Register - PRINT'!L34","v":0},{"$f":"IF(H160=0,4,IF(H160=\"N/A\",4,IF(H160=\"Low\",3,IF(H160=\"Med\",2,IF(H160=\"Sig\",1)))))","v":4},"Please complete","Please complete","Please complete"]
[null,{"$f":"'Aspect Register - PRINT'!$C$35","v":20},"n",{"$f":"'Aspect Register - PRINT'!$D$35","v":"Other - Please Insert"},{"$f":"'Aspect Register - PRINT'!$N$12","v":"Land Contamination"},"Normal","Please complete",{"$f":"'Aspect Register - PRINT'!N35","v":0},{"$f":"IF(H161=0,4,IF(H161=\"N/A\",4,IF(H161=\"Low\",3,IF(H161=\"Med\",2,IF(H161=\"Sig\",1)))))","v":4},"Please complete","Please complete","Please complete"]
[null,{"$f":"'Aspect Register - PRINT'!$C$35","v":20},"k",{"$f":"'Aspect Register - PRINT'!$D$35","v":"Other - Please Insert"},{"$f":"'Aspect Register - PRINT'!$K$12","v":"Air Pollution"},"Normal","Please complete",{"$f":"'Aspect Register - PRINT'!K35","v":0},{"$f":"IF(H162=0,4,IF(H162=\"N/A\",4,IF(H162=\"Low\",3,IF(H162=\"Med\",2,IF(H162=\"Sig\",1)))))","v":4},"Please complete","Please complete","Please complete"]
[null,{"$f":"'Aspect Register - PRINT'!$C$35","v":20},"m",{"$f":"'Aspect Register - PRINT'!$D$35","v":"Other - Please Insert"},{"$f":"'Aspect Register - PRINT'!$M$12","v":"Cultural Heritage"},"Normal","Please complete",{"$f":"'Aspect Register - PRINT'!M35","v":0},{"$f":"IF(H163=0,4,IF(H163=\"N/A\",4,IF(H163=\"Low\",3,IF(H163=\"Med\",2,IF(H163=\"Sig\",1)))))","v":4},"Please complete","Please complete","Please complete"]
[null,{"$f":"'Aspect Register - PRINT'!$C$35","v":20},"g",{"$f":"'Aspect Register - PRINT'!$D$35","v":"Other - Please Insert"},{"$f":"'Aspect Register - PRINT'!$G$12","v":"Dust or Odour"},"Normal","Please complete",{"$f":"'Aspect Register - PRINT'!G35","v":0},{"$f":"IF(H164=0,4,IF(H164=\"N/A\",4,IF(H164=\"Low\",3,IF(H164=\"Med\",2,IF(H164=\"Sig\",1)))))","v":4},"Please complete","Please complete","Please complete"]
[null,{"$f":"'Aspect Register - PRINT'!$C$35","v":20},"p",{"$f":"'Aspect Register - PRINT'!$D$35","v":"Other - Please Insert"},{"$f":"'Aspect Register - PRINT'!$P$12","v":"Ecology & Biodiversity"},"Normal","Please complete",{"$f":"'Aspect Register - PRINT'!P35","v":0},{"$f":"IF(H165=0,4,IF(H165=\"N/A\",4,IF(H165=\"Low\",3,IF(H165=\"Med\",2,IF(H165=\"Sig\",1)))))","v":4},"Please complete","Please complete","Please complete"]
[null,{"$f":"'Aspect Register - PRINT'!$C$35","v":20},"j",{"$f":"'Aspect Register - PRINT'!$D$35","v":"Other - Please Insert"},{"$f":"'Aspect Register - PRINT'!$J$12","v":"Ground & Surface Water"},"Normal","Please complete",{"$f":"'Aspect Register - PRINT'!J35","v":0},{"$f":"IF(H166=0,4,IF(H166=\"N/A\",4,IF(H166=\"Low\",3,IF(H166=\"Med\",2,IF(H166=\"Sig\",1)))))","v":4},"Please complete","Please complete","Please complete"]
[null,{"$f":"'Aspect Register - PRINT'!$C$35","v":20},"h",{"$f":"'Aspect Register - PRINT'!$D$35","v":"Other - Please Insert"},{"$f":"'Aspect Register - PRINT'!$H$12","v":"Highway Traffic"},"Normal","Please complete",{"$f":"'Aspect Register - PRINT'!H35","v":0},{"$f":"IF(H167=0,4,IF(H167=\"N/A\",4,IF(H167=\"Low\",3,IF(H167=\"Med\",2,IF(H167=\"Sig\",1)))))","v":4},"Please complete","Please complete","Please complete"]
[null,{"$f":"'Aspect Register - PRINT'!$C$35","v":20},"f",{"$f":"'Aspect Register - PRINT'!$D$35","v":"Other - Please Insert"},{"$f":"'Aspect Register - PRINT'!$F$12","v":"Noise,  Light or Vibration"},"Normal","Please complete",{"$f":"'Aspect Register - PRINT'!F35","v":0},{"$f":"IF(H168=0,4,IF(H168=\"N/A\",4,IF(H168=\"Low\",3,IF(H168=\"Med\",2,IF(H168=\"Sig\",1)))))","v":4},"Please complete","Please complete","Please complete"]
[null,{"$f":"'Aspect Register - PRINT'!$C$35","v":20},"q",{"$f":"'Aspect Register - PRINT'!$D$35","v":"Other - Please Insert"},"Other - Please complete","Normal","Please complete",{"$f":"'Aspect Register - PRINT'!Q35","v":0},{"$f":"IF(H169=0,4,IF(H169=\"N/A\",4,IF(H169=\"Low\",3,IF(H169=\"Med\",2,IF(H169=\"Sig\",1)))))","v":4},"Please complete","Please complete","Please complete"]
[null,{"$f":"'Aspect Register - PRINT'!$C$35","v":20},"o",{"$f":"'Aspect Register - PRINT'!$D$35","v":"Other - Please Insert"},{"$f":"'Aspect Register - PRINT'!$O$12","v":"Resource Use \ne.g. Materials, Energy or Water"},"Normal","Please complete",{"$f":"'Aspect Register - PRINT'!O35","v":0},{"$f":"IF(H170=0,4,IF(H170=\"N/A\",4,IF(H170=\"Low\",3,IF(H170=\"Med\",2,IF(H170=\"Sig\",1)))))","v":4},"Please complete","Please complete","Please complete"]
[null,{"$f":"'Aspect Register - PRINT'!$C$35","v":20},"i",{"$f":"'Aspect Register - PRINT'!$D$35","v":"Other - Please Insert"},{"$f":"'Aspect Register - PRINT'!$I$12","v":"Visual Impact"},"Normal","Please complete",{"$f":"'Aspect Register - PRINT'!I35","v":0},{"$f":"IF(H171=0,4,IF(H171=\"N/A\",4,IF(H171=\"Low\",3,IF(H171=\"Med\",2,IF(H171=\"Sig\",1)))))","v":4},"Please complete","Please complete","Please complete"]
[null,{"$f":"'Aspect Register - PRINT'!$C$35","v":20},"l",{"$f":"'Aspect Register - PRINT'!$D$35","v":"Other - Please Insert"},{"$f":"'Aspect Register - PRINT'!$L$12","v":"Waste"},"Normal","Please complete",{"$f":"'Aspect Register - PRINT'!L35","v":0},{"$f":"IF(H172=0,4,IF(H172=\"N/A\",4,IF(H172=\"Low\",3,IF(H172=\"Med\",2,IF(H172=\"Sig\",1)))))","v":4},"Please complete","Please complete","Please complete"]

{"sheet":"Nuisance","index":2,"n_rows":57,"n_cols":3,"rows_kept":57,"cut":false,"hidden":false,"merged":[[0,1,0,2]]}
[null,"The following should be considered when determining the significance:"]
[null," ","NOISE"]
[null,1,"Are there any sensitive receptors nearby e.g., residents, schools, conservation areas or other businesses?"]
[null,2,"Is the construction activity likely to generate noise that could negatively impact sensitive receptors?"]
[null,3,"Are plant, vehicles and equipment likely to emit excessive noise e.g., reversing alarms / non-silenced generators?"]
[null,4,"Could the noise emissions lead to a short or long term harm to the environment?"]
[null,5,"Could the noise emissions lead to a short or long term negative perception with people not associated with the project?"]
[null,6,"Is the site in an area known for being sensitive to noise e.g., vociferous neighbours?"]
[null,7,"Is there a Section 61 notice applicable to the site?"]
[null,8,"Have any working time restrictions been defined?"]
[null,9,"Could a relevant piece of environmental legislation be breached?"]
[null,null,"ODOUR"]
[null,1,"Are there any sensitive receptors nearby e.g., residents, schools, conservation areas or other businesses?"]
[null,2,"Is the construction activity likely to generate odour that could negatively impact sensitive receptors?"]
[null,3,"Are any material or waste storage practices likely to generate odours that could negatively impact sensitive receptors?"]
[null,4,"Could the odour emissions lead to a short or long term harm to the environment?"]
[null,5,"Could the odour emissions lead to a short or long term negative perception with people not associated with the project?"]
[null,6,"Is the site in an area known for being sensitive to odour e.g., vociferous neighbours?"]
[null,7,"Could a relevant piece of environmental legislation be breached?"]
[null,null,"DUST"]
[null,1,"Are there any sensitive receptors nearby e.g., residents, schools, conservation areas or other businesses?"]
[null,2,"Are climatic conditions likely to lead to dust emissions e.g., dry and windy conditions?"]
[null,3,"Is the construction activity likely to generate dust that could negatively impact sensitive receptors?"]
[null,4,"Are plant, vehicles and equipment in poor condition and likely to emit excessive dust / smoke?"]
[null,5,"Are any material or waste storage practices likely to generate dust that could negatively impact sensitive receptors?"]
[null,6,"Are there any crops (e.g., fruit farms) nearby that could be negatively impacted?"]
[null,7,"Could dust emissions lead to a short or long term harm to the environment?"]
[null,8,"Could dust emissions lead to a short or long term negative perception with people not associated with the project?"]
[null,9,"Is the site in an area known for being sensitive to dust e.g., vociferous neighbours?"]
[null,10,"Could a relevant piece of environmental legislation be breached?"]
[null,null,"TRAFFIC"]
[null,1,"Are there any sensitive receptors nearby e.g., residents, schools, conservation areas or other businesses?"]
[null,2,"Is the construction activity likely to excessive traffic flows that could negatively impact sensitive receptors?"]
[null,3,"Could construction traffic cause a disruption to non-project traffic / pedestrians / other sensitive receptors?"]
[null,4,"Are public roads suitable for use by construction related traffic?"]
[null,5,"Is parking on-site suitable or is off-site parking necessary?"]
[null,6,"Could the construction traffic lead to a short or long term harm to the environment?"]
[null,7,"Could the construction traffic lead to a short or long term negative perception with people not associated with the project?"]
[null,8,"Is the site in an area known for being sensitive to traffic issues e.g., vociferous neighbours?"]
[null,9,"Could a relevant piece of environmental legislation be breached?"]
[null,null,"VISUAL IMPACT"]
[null,1,"Are there any sensitive receptors nearby e.g., residents, schools, conservation areas or other businesses?"]
[null,2,"Is the construction activity likely to lead to negative visual impacts?"]
[null,3,"Could the visual impacts lead to a short or long term negative perception with people not associated with the project?"]
[null,4,"Are any material or waste storage practices likely to generate adverse visual impacts?"]
[null,5,"Is the site in an area known for being sensitive to general construction works e.g., vociferous neighbours?"]
[null,6,"Could mud / dust be deposited on public roads?"]
[null,7,"Could a relevant piece of environmental legislation be breached?"]
[null,null,"VIBRATION & LIGHT"]
[null,1,"Are there any sensitive receptors nearby e.g., residents, schools, conservation areas, other businesses or Listed Buildings?"]
[null,2,"Is the construction activity likely to generate vibration or light that could negatively impact sensitive receptors?"]
[null,3,"Could the vibration and / or light emissions lead to a short or long term harm to the environment?"]
[null,4,"Could the vibration and / or light emissions lead to a negative perception with people not associated with the project?"]
[null,5,"Is the site in an area known for being sensitive to vibration and / or light e.g., vociferous neighbours?"]
[null,6,"Is there a Section 61 notice applicable to the site?"]
[null,7,"Have any vibration and / or luminance restrictions been defined?"]
[null,8,"Could a relevant piece of environmental legislation be breached?"]

{"sheet":"Discharges","index":3,"n_rows":42,"n_cols":3,"rows_kept":42,"cut":false,"hidden":false,"merged":[[0,1,0,2]]}
[null,"The following should be considered when determining the significance:"]
[null," ","SURFACE WATER"]
[null,1,"Are there any watercourses nearby e.g., rivers, streams, lochs, ditches, canals, burns or ponds?"]
[null,2,"Is the construction activity likely to generate effluents that could negatively impact nearby watercourses?"]
[null,3,"Does the construction activity require the blocking / damming / impounding of any watercourses?"]
[null,4,"Does the construction activity require the use of any herbicides in the vicinity of any watercourses?"]
[null,5,"Does the construction activity require the overpumping of any watercourses?"]
[null,6,"Is the construction activity to take place near a main river?"]
[null,7,"Is the construction activity to take place near or in a flood defence area?"]
[null,8,"Is the construction activity to take place near a tidal defence?"]
[null,9,"Are any dewatering activities necessary (e.g., from excavations / groundwater)?"]
[null,10,"Is water required to be abstracted from a watercourse?"]
[null,11,"Are effluent(s) required to be discharged to a watercourse?"]
[null,12,"Is a discharge consent, applicable to the discharge of an effluent to surface watercourses, required?"]
[null,13,"Could site drainage negatively impact the quality of nearby watercourses?"]
[null,14,"Could drainage from material / waste storage areas negatively impact the quality of nearby watercourses?"]
[null,15,"Are construction works to take place within tidal waters?"]
[null,16,"Could vehicle / plant wash down activities have a negative impact upon nearby watercourses? "]
[null,17,"Could the effluent discharges to surface watercourses lead to a short or long term harm to the environment?"]
[null,18,"Could discharges to surface watercourses lead to a negative perception with people not associated with the project?"]
[null,19,"Could a relevant piece of environmental legislation be breached?"]
[null,null,"GROUNDWATER"]
[null,1,"Are groundwaters of a good quality and are they protected by impermeable coverings e.g., clays / hardstanding?"]
[null,2,"Is the construction activity likely to generate effluents that could negatively impact groundwaters?"]
[null,3,"Could the effluent discharges to groundwaters lead to a short or long term harm to the environment?"]
[null,4,"Are effluent(s) required to be discharged to groundwaters?"]
[null,5,"Is a discharge consent, applicable to the discharge of an effluent to groundwaters, required?"]
[null,6,"Is the construction activity to take place near an abstraction point / well?"]
[null,7,"Is water required to be abstracted from groundwaters?"]
[null,8,"Could groundwater abstraction cause localised depletion of groundwater resources?"]
[null,9,"Are any dewatering activities necessary (e.g., from excavations / groundwater)?"]
[null,10,"Could site drainage negatively impact the quality of groundwaters?"]
[null,11,"Could drainage from material / waste storage areas negatively impact the quality of groundwaters?"]
[null,12,"Could vehicle / plant wash down activities have a negative impact upon groundwaters? "]
[null,13,"Could discharges to groundwater lead to a negative perception with people not associated with the project?"]
[null,14,"Could a relevant piece of environmental legislation be breached?"]
[null,null,"AIR"]
[null,1,"Could harmful particles be released to the air, e.g. Asbestos"]
[null,2,"Are any funes released by hazardous chemicals"]
[null,3,"Are there exhaust emissions such as particulate from diesel powered engines / generators"]
[null,4,"Release of greenhouse gases such as CO2 and NO from combustion"]
[null,5,"Release of other gases such as CFCs"]

{"sheet":"Waste","index":4,"n_rows":25,"n_cols":3,"rows_kept":25,"cut":false,"hidden":false,"merged":[[0,1,0,2]]}
[null,"The following should be considered when determining the significance:"]
[null," ","SOLID WASTE"]
[null,1,"Could the construction activity lead to the generation of any inert wastes?"]
[null,2,"Are any inert wastes required to be stored on-site either for reuse or off-site disposal?"]
[null,3,"Could the construction activity lead to the disposal of inert wastes off-site?"]
[null,4,"Could the disposal of inert wastes lead to a short or long term harm to the environment?"]
[null,5,"Could the construction activity lead to the generation of any non-hazardous wastes?"]
[null,6,"Are any non-hazardous wastes required to be stored on-site either for reuse or off-site disposal?"]
[null,7,"Could the construction activity lead to the disposal of non-hazardous wastes off-site?"]
[null,8,"Could the disposal of non-hazardous wastes lead to a short or long term harm to the environment?"]
[null,9,"Could the construction activity lead to the generation of any hazardous (or Special in Scotland) wastes?"]
[null,10,"Are any hazardous (or Special in Scotland) wastes required to be stored on-site either for off-site disposal?"]
[null,11,"Could the construction activity lead to the disposal of hazardous (or Special in Scotland) wastes off-site?"]
[null,12,"Could the disposal of hazardous (or Special in Scotland) wastes lead to a short or long term harm to the environment?"]
[null,13,"Are all solid waste disposal contractors appropriately licensed i.e., waste carrier / broker license?"]
[null,14,"Are prospective solid waste disposal facilities appropriately licensed or exempt?"]
[null,15,"Could a relevant piece of environmental legislation be breached?"]
[null,null,"LIQUID WASTE"]
[null,1,"Could the construction activity lead to the generation of any liquid (non-hazardous / hazardous / special) wastes?"]
[null,2,"Are any liquid (non-hazardous / hazardous / special) wastes required to be stored on-site either for reuse or off-site disposal?"]
[null,3,"Are effluent(s) required to be discharged to a sewer or combined drainage system?"]
[null,4,"Could the disposal of liquid wastes lead to a short or long term harm to the environment?"]
[null,5,"Are all liquid waste disposal contractors appropriately licensed i.e., waste carrier / broker license?"]
[null,6,"Are prospective  liquid waste disposal facilities appropriately licensed or exempt?"]
[null,7,"Could a relevant piece of environmental legislation be breached?"]

{"sheet":"Heritage","index":5,"n_rows":13,"n_cols":3,"rows_kept":13,"cut":false,"hidden":false,"merged":[[0,1,0,2]]}
[null,"The following should be considered when determining the significance:"]
[null," ","CULTURAL HERITAGE"]
[null,1,"Has any evaluation been conducted to determine the presence of cultural heritage, namely:"]
[null,null," - Archaeological sites and / or monuments?"]
[null,null," - Historic buildings?"]
[null,null," - Historic landscapes and / or features e.g., conservation areas; registered parks / gardens; historic street furniture?"]
[null,2,"Is the site located in an area of known or suspected archaeological importance?"]
[null,3,"Are there any protected buildings (e.g., Listed Buildings) that could detrimentally be impacted by the construction activity?"]
[null,4,"Are there any scheduled ancient monuments (SAMs) that could detrimentally be impacted by the construction activity?"]
[null,5,"Is any work going to be conducted upon a Listed Building or SAM?"]
[null,6,"Could construction activities result in vibration impacts that could negatively impact known areas of cultural heritage?"]
[null,7,"Could construction traffic result in negative impacts upon known areas of cultural heritage?"]
[null,8,"Could a relevant piece of environmental legislation be breached?"]

{"sheet":"Land","index":6,"n_rows":20,"n_cols":3,"rows_kept":20,"cut":false,"hidden":false,"merged":[[0,1,0,2]]}
[null,"The following should be considered when determining the significance:"]
[null," ","LAND USE"]
[null,1,"Is there any evidence of known or suspected areas of contaminated land?"]
[null,2,"Is there any evidence of pollution originating on adjacent land and migrating onto the site?"]
[null,3,"Have either Phase I or Phase II site investigations been conducted?"]
[null,4,"Are remediation and / or disposal strategies needed to manage known areas of contaminated land?"]
[null,5,"Are competent contractor(s) needed to deal with known areas of contaminated land?"]
[null,6,"Are licences required to deal with the treatment and / or disposal of contaminated materials?"]
[null,7,"Could the management of contaminated land lead to the generation of any non-hazardous or hazardous (special) wastes?"]
[null,8,"Are any contaminated soils required to be stored on-site either for reuse, treatment or off-site disposal?"]
[null,9,"Could the disposal of contaminated soils lead to a short or long term harm to the environment?"]
[null,10,"Are topsoils required to be stripped and stored?"]
[null,11,"Are subsoils required to be excavated and stored?"]
[null,12,"Are defined methods / practices required for the stripping, excavation and storage of soils?"]
[null,13,"Are large quantities of soils to be stored for more than 3 months?"]
[null,14,"Are defined methods / practices required for the reinstatement of soils?"]
[null,15,"Are temporary and / or permanent erosion control measures required to protect reinstated soils?"]
[null,16,"Are any revegetation measures required to reduce erosion and establish a natural / restored habitat?"]
[null,17,"Is there any need for fertilisers to be applied?"]
[null,18,"Could a relevant piece of environmental legislation be breached?"]

{"sheet":"Resources","index":7,"n_rows":30,"n_cols":3,"rows_kept":30,"cut":false,"hidden":false,"merged":[[0,1,0,2],[24,1,24,2]]}
[null,"The following should be considered when determining the significance:"]
[null," ","MATERIALS"]
[null,1,"Are construction materials required to be stored on-site?"]
[null,2,"Are construction materials required to be stored in certain ways to avoid becoming degraded?"]
[null,3,"Can materials be sourced from local sources?"]
[null,4,"Is there any need for materials to be sourced from sustainable sources e.g., FSC wood sources?"]
[null,5,"Is there any need to use materials that have a low environmental impact?"]
[null,6,"Can reprocessed or recycled components and materials be used?"]
[null,7,"Is there any need to use durable materials and products?"]
[null,8,"Is there any need to use materials and products that can be recovered, reused and / or recycled?"]
[null,9,"Could a relevant piece of environmental legislation be breached?"]
[null,null,"ENERGY"]
[null,1,"Is there any need to conserve electricity during the construction activity?"]
[null,2,"Is there any need to conserve gas during the construction activity?"]
[null,3,"Is there any need to conserve fuel oil during the construction activity?"]
[null,4,"Is there any need to conserve gas oil during the construction activity?"]
[null,5,"Is there any need to conserve petrol during the construction activity?"]
[null,6,"Is there any need to conserve diesel during the construction activity?"]
[null,7,"Is there any need to use microgeneration on-site?"]
[null,8,"Are there any opportunities to reduce the carbon footprint of the construction activity?"]
[null,9,"Is there any way of monitoring energy consumed for the construction activity?"]
[null,10,"Can any energy saving devices be used?"]
[null,11,"Can good energy management practices be adopted to reduce overall energy consumption e.g., heating / lighting controls?"]
[null,12,"Could a relevant piece of environmental legislation be breached?"]
[null,"WATER"]
[null,1,"Is there any need to conserve water during the construction activity?"]
[null,2,"Is there any way of monitoring water consumed for the construction activity?"]
[null,3,"Can any water saving devices be used?"]
[null,4,"Can good water management practices be adopted to reduce overall water consumption e.g., water efficient fittings?"]
[null,5,"Could a relevant piece of environmental legislation be breached?"]

{"sheet":"Ecology","index":8,"n_rows":17,"n_cols":3,"rows_kept":17,"cut":false,"hidden":false,"merged":[[0,1,0,2]]}
[null,"The following should be considered when determining the significance:"]
[null," ","ECOLOGY"]
[null,1,"Are construction works to take place in or near a conservation area e.g., SSSI; nature reserve?"]
[null,2,"Have either a Phase 1 or Phase 2 habitat survey been conducted?"]
[null,3,"Are there any known / suspected / potential for the presence of protected wildlife species?"]
[null,4,"Are there any known / suspected / potential for the presence of protected floral species?"]
[null,5,"Are there any known / suspected / potential for the presence of invasive plant species?"]
[null,6,"Is the construction activity likely to negatively impact any ecological resource?"]
[null,7,"Are specific mitigation measures required to manage any protected wildlife species?"]
[null,8,"Are specific mitigation measures required to manage any protected floral species?"]
[null,9,"Are specific mitigation measures required to manage any protected trees or tree roots?"]
[null,10,"Are specific mitigation measures required to manage any invasive plant species?"]
[null,11,"Are competent contractor(s) needed to effectively ecological resources on-site?"]
[null,12,"Are compensation measures required to ensure no overall net loss to ecological resources?"]
[null,13,"Are there any special geological and / or hydrogeological conditions affecting site works?"]
[null,14,"Is there any need for ecological monitoring to take place on-site?"]
[null,15,"Could a relevant piece of environmental legislation be breached?"]